Service Area,Service Area Categorisation,Service Division Categorisation,Responsible Unit,Expenses Types,Detailed Expenses Type,Expense Code,Narrative,Invoice Date,Payment Date,Amount,Capital/Revenue,Supplier Name
Schools Total,School Group 2 � Pupil Capacity 144-314,MCC Schools,Ysgol Gymraeg Y Fenni,Premises,"Repairs, Alterations & Maintenance of Buildings",Building Improvements / Maintenance,,30/01/2024,11/03/2024,666.46,,EFS Systems (UK) Ltd
"Facilities, Fleet & Decarbonisation",Transport Department,Communities & Place,Transport,Transport,Direct Transport Costs,All Other Non-Contract Transport Work.,,05/03/2024,11/03/2024,167,,Walls Truck Services
"Facilities, Fleet & Decarbonisation",Transport Department,Communities & Place,Transport,Transport,Direct Transport Costs,All Other Non-Contract Transport Work.,,05/03/2024,11/03/2024,120,,Walls Truck Services
Schools Total,School Group 2 � Pupil Capacity 144-314,MCC Schools,Thornwell Primary School,Supplies & Services,"Equipment, Furniture and Materials",Equipment Purchases,,11/03/2024,19/03/2024,-14.99,,Amazon Payments UK Limited
Schools Total,School Group 2 � Pupil Capacity 144-314,MCC Schools,Thornwell Primary School,Supplies & Services,"Equipment, Furniture and Materials",Equipment Purchases,,11/03/2024,19/03/2024,14.99,,Amazon Payments UK Limited
Schools Total,School Group 7 � Pupil Capacity 501-1800,MCC Schools,King Henry 3-19 School,Supplies & Services,"Equipment, Furniture and Materials",Equipment Purchases,,21/01/2024,20/03/2024,3.32,,Amazon Payments UK Limited
Capital Division,Capital Dept,Capital,Capital Programme,Supplies & Services,Services,Professional And Specialist Fees,,26/02/2024,28/03/2024,690,,WSP UK Limited
Capital Division,Capital Dept,Capital,Capital Programme,Supplies & Services,"Equipment, Furniture and Materials",Equipment Purchases,,20/03/2024,28/03/2024,750,,Community Playthings
Capital Division,Capital Dept,Capital,Capital Programme,Supplies & Services,"Equipment, Furniture and Materials",Equipment Purchases,,20/03/2024,28/03/2024,198,,Community Playthings
Schools Total,School Group 2 � Pupil Capacity 144-314,MCC Schools,Ysgol Gymraeg Y Fenni,Supplies & Services,"Equipment, Furniture and Materials",Equipment Purchases,,19/03/2024,25/03/2024,5.32,,Hope Education Ltd
Schools Total,School Group 2 � Pupil Capacity 144-314,MCC Schools,Ysgol Gymraeg Y Fenni,Supplies & Services,"Equipment, Furniture and Materials",Equipment Purchases,,19/03/2024,25/03/2024,1.73,,Hope Education Ltd
Schools Total,School Group 2 � Pupil Capacity 144-314,MCC Schools,Ysgol Gymraeg Y Fenni,Supplies & Services,"Equipment, Furniture and Materials",Equipment Purchases,,19/03/2024,25/03/2024,4.87,,Hope Education Ltd
Schools Total,School Group 2 � Pupil Capacity 144-314,MCC Schools,Ysgol Gymraeg Y Fenni,Supplies & Services,"Equipment, Furniture and Materials",Equipment Purchases,,19/03/2024,25/03/2024,31.34,,Hope Education Ltd
Schools Total,School Group 2 � Pupil Capacity 144-314,MCC Schools,Ysgol Gymraeg Y Fenni,Supplies & Services,"Equipment, Furniture and Materials",Equipment Purchases,,19/03/2024,25/03/2024,7.49,,Hope Education Ltd
Schools Total,School Group 7 � Pupil Capacity 501-1800,MCC Schools,King Henry 3-19 School,Supplies & Services,"Equipment, Furniture and Materials",Equipment Purchases,,21/03/2024,25/03/2024,18.41,,Amazon Payments UK Limited
Control Division,Control Dept,Control,Payroll Monthly 2 (Schools),Current Liabilities,Short Term Creditors,Resource Link Payments,,21/03/2024,25/03/2024,1906,,Kiddivouchers
"Facilities, Fleet & Decarbonisation",Transport Department,Communities & Place,Transport,Transport,Direct Transport Costs,All Other Non-Contract Transport Work.,,27/01/2024,11/03/2024,273,,Quartix
"Facilities, Fleet & Decarbonisation",Transport Department,Communities & Place,Transport,Transport,Direct Transport Costs,All Other Non-Contract Transport Work.,,30/01/2024,11/03/2024,97.5,,Quartix
Resources,Support Services,Children & Young People,Support Services ICT,Supplies & Services,Communications and Computing,IT Software,,01/03/2024,11/03/2024,12099.78,,Capita ESS Ltd
Schools Total,School Group 1 � Pupil Capacity 1-143,MCC Schools,Llandogo Primary School,Premises,"Repairs, Alterations & Maintenance of Buildings",Building Improvements / Maintenance,,21/03/2024,25/03/2024,202.85,,Ambassador Fire & Security LTD
Adult Services,Community Care Team,Social Care and Health,Chepstow Adult Team,Third Party Payments,Third Party,Personal Care.,,20/03/2024,25/03/2024,1069.6,,Abicare CareMatch Services Ltd
Schools Total,School Group 2 � Pupil Capacity 144-314,MCC Schools,Ysgol Gymraeg Y Fenni,Supplies & Services,"Equipment, Furniture and Materials",Equipment Purchases,,19/03/2024,25/03/2024,24.76,,Hope Education Ltd
Schools Total,School Group 2 � Pupil Capacity 144-314,MCC Schools,Shirenewton Primary School,Premises,"Repairs, Alterations & Maintenance of Buildings",Building Improvements / Maintenance,,20/02/2024,20/03/2024,186.88,,A.J Quinn Building Contractors Ltd
Schools Total,School Group 7 � Pupil Capacity 501-1800,MCC Schools,Caldicot School,Premises,"Repairs, Alterations & Maintenance of Buildings",Building Improvements / Maintenance,,22/02/2024,20/03/2024,57.5,,A.J Quinn Building Contractors Ltd
Adult Services,Community Care Team,Social Care and Health,Chepstow Adult Team,Third Party Payments,Third Party,Personal Care.,,18/03/2024,28/03/2024,2775.9,,Lougher Home Care Ltd
"Policy, Scrutiny & Customer Service",Community Hubs,Chief Executive's Unit,Strategic Management,Supplies & Services,Grants and Subscriptions,Library Subscriptions,,20/03/2024,28/03/2024,453,,Awen Cultural Trust
"Facilities, Fleet & Decarbonisation",Transport Department,Communities & Place,Transport,Transport,Direct Transport Costs,All Other Non-Contract Transport Work.,,04/03/2024,11/03/2024,60,,Gould Autoplates & Signs Ltd
Control Division,Control Dept,Control,Payroll Monthly General,Current Liabilities,Short Term Creditors,Resource Link Payments,,01/03/2024,11/03/2024,4311.61,,Unison
Control Division,Control Dept,Control,Payroll Monthly 2 (Schools),Current Liabilities,Short Term Creditors,Resource Link Payments,,01/03/2024,11/03/2024,1371.6,,Unison
Schools Total,School Group 7 � Pupil Capacity 501-1800,MCC Schools,King Henry 3-19 School,Supplies & Services,"Printing, Stationery and General Office Expenses",Book Purchases,,11/03/2024,14/03/2024,867,,Oxford University Press
Schools Total,School Group 7 � Pupil Capacity 501-1800,MCC Schools,King Henry 3-19 School,Supplies & Services,"Printing, Stationery and General Office Expenses",Book Purchases,,11/03/2024,14/03/2024,5.5,,Oxford University Press
Schools Total,School Group 2 � Pupil Capacity 144-314,MCC Schools,Cross Ash Primary School,Supplies & Services,"Equipment, Furniture and Materials",Equipment Purchases,,14/03/2024,22/03/2024,13.58,,Yorkshire Purchasing
Adult Services,Community Care Team,Social Care and Health,Chepstow Adult Team,Third Party Payments,Third Party,Personal Care.,,26/03/2024,28/03/2024,177.6,,REDACTED PERSONAL DATA
Schools Total,School Group 2 � Pupil Capacity 144-314,MCC Schools,Thornwell Primary School,Supplies & Services,"Printing, Stationery and General Office Expenses",Stationery,,12/03/2024,19/03/2024,3.74,,Amazon Payments UK Limited
Schools Total,School Group 7 � Pupil Capacity 501-1800,MCC Schools,Monmouth Comprehensive,Supplies & Services,"Printing, Stationery and General Office Expenses",Stationery,,19/03/2024,25/03/2024,3.32,,Amazon Payments UK Limited
Schools Total,School Group 7 � Pupil Capacity 501-1800,MCC Schools,King Henry 3-19 School,Employees,Indirect Employee Expenses,"Course, Conference And Seminar Fees",,21/03/2024,25/03/2024,260,,REAL GROUP
"Leisure, Youth & Outdoor Adventure",Sports Development,MonLife Directorate,Local Authority Partnership Agreement,Supplies & Services,"Equipment, Furniture and Materials",Equipment Purchases,,12/03/2024,25/03/2024,260,,Bishop Sports And Leisure Limited
"Leisure, Youth & Outdoor Adventure",Sports Development,MonLife Directorate,Local Authority Partnership Agreement,Supplies & Services,"Equipment, Furniture and Materials",Equipment Purchases,,12/03/2024,25/03/2024,99,,Bishop Sports And Leisure Limited
Schools Total,School Group 7 � Pupil Capacity 501-1800,MCC Schools,Caldicot School,Employees,Indirect Employee Expenses,"Course, Conference And Seminar Fees",,18/03/2024,25/03/2024,11.06,,Amazon Payments UK Limited
"Leisure, Youth & Outdoor Adventure",Sports Development,MonLife Directorate,Local Authority Partnership Agreement,Supplies & Services,"Equipment, Furniture and Materials",Equipment Purchases,,12/03/2024,25/03/2024,194,,Bishop Sports And Leisure Limited
"Leisure, Youth & Outdoor Adventure",Sports Development,MonLife Directorate,Local Authority Partnership Agreement,Supplies & Services,"Equipment, Furniture and Materials",Equipment Purchases,,12/03/2024,25/03/2024,88,,Bishop Sports And Leisure Limited
"Leisure, Youth & Outdoor Adventure",Sports Development,MonLife Directorate,Local Authority Partnership Agreement,Supplies & Services,"Equipment, Furniture and Materials",Equipment Purchases,,12/03/2024,25/03/2024,26,,Bishop Sports And Leisure Limited
"Leisure, Youth & Outdoor Adventure",Sports Development,MonLife Directorate,Local Authority Partnership Agreement,Supplies & Services,"Equipment, Furniture and Materials",Equipment Purchases,,12/03/2024,25/03/2024,6,,Bishop Sports And Leisure Limited
"Leisure, Youth & Outdoor Adventure",Sports Development,MonLife Directorate,Local Authority Partnership Agreement,Supplies & Services,"Equipment, Furniture and Materials",Equipment Purchases,,12/03/2024,25/03/2024,68,,Bishop Sports And Leisure Limited
"Leisure, Youth & Outdoor Adventure",Sports Development,MonLife Directorate,Local Authority Partnership Agreement,Supplies & Services,"Equipment, Furniture and Materials",Equipment Purchases,,12/03/2024,25/03/2024,298,,Bishop Sports And Leisure Limited
Schools Total,School Group 7 � Pupil Capacity 501-1800,MCC Schools,Monmouth Comprehensive,Supplies & Services,"Printing, Stationery and General Office Expenses",Stationery,,19/03/2024,25/03/2024,42.42,,Amazon Payments UK Limited
Schools Total,School Group 7 � Pupil Capacity 501-1800,MCC Schools,Monmouth Comprehensive,Supplies & Services,"Printing, Stationery and General Office Expenses",Stationery,,19/03/2024,25/03/2024,9.99,,Amazon Payments UK Limited
"Leisure, Youth & Outdoor Adventure",Sports Development,MonLife Directorate,Local Authority Partnership Agreement,Supplies & Services,"Equipment, Furniture and Materials",Equipment Purchases,,12/03/2024,25/03/2024,8.95,,Bishop Sports And Leisure Limited
Neighbourhood Services,Highways,Communities & Place,Street Lighting,Premises,Energy Costs,Electricity.,,23/02/2024,20/03/2024,324.08,,EDF Energy
Neighbourhood Services,Waste and Street Services,Communities & Place,Refuse & Cleansing Operations,Premises,Energy Costs,Electricity.,,06/03/2024,20/03/2024,1.66,,EDF Energy
Neighbourhood Services,Waste and Street Services,Communities & Place,Refuse & Cleansing Operations,Premises,Energy Costs,Electricity.,,06/03/2024,20/03/2024,272.67,,EDF Energy
"Policy, Scrutiny & Customer Service",Community Hubs,Chief Executive's Unit,Community Hub - Caldicot,Premises,Energy Costs,Electricity.,,01/03/2024,20/03/2024,491.24,,EDF Energy
"Leisure, Youth & Outdoor Adventure",Youth & Education,MonLife Directorate,Gilwern,Premises,Energy Costs,Electricity.,,29/02/2024,20/03/2024,127.09,,EDF Energy
Finance & Business Devlopment,Attractions,MonLife Directorate,Tourist Information Centres,Premises,Energy Costs,Electricity.,,06/03/2024,20/03/2024,656.16,,EDF Energy
Finance & Business Devlopment,Attractions,MonLife Directorate,Tourist Information Centres,Premises,Energy Costs,Electricity.,,06/03/2024,20/03/2024,4.59,,EDF Energy
Finance & Business Devlopment,Attractions,MonLife Directorate,Caldicot Castle & Country Park,Supplies & Services,"Equipment, Furniture and Materials",Health & Safety Equipment.,,16/02/2024,21/03/2024,301.5,,Tudor Environmental
Neighbourhood Services,Waste and Street Services,Communities & Place,Refuse & Cleansing Operations,Supplies & Services,"Equipment, Furniture and Materials",Health & Safety Equipment.,,31/01/2024,21/03/2024,144.32,,Industrial Rugbi Supplies
Schools Total,School Group 7 � Pupil Capacity 501-1800,MCC Schools,King Henry 3-19 School,Supplies & Services,"Equipment, Furniture and Materials",Health & Safety Equipment.,,14/03/2024,22/03/2024,10.78,,Hope Education Ltd
Schools Total,School Group 2 � Pupil Capacity 144-314,MCC Schools,Cross Ash Primary School,Supplies & Services,"Printing, Stationery and General Office Expenses",Stationery,,14/03/2024,22/03/2024,63.18,,Yorkshire Purchasing
Standards,Early Years,Children & Young People,Flying Start Grant,Supplies & Services,"Equipment, Furniture and Materials",Equipment Purchases,,14/03/2024,22/03/2024,788.47,,Hope Education Ltd
Schools Total,Schools,MCC Schools,Pupil Referral Unit,Supplies & Services,"Equipment, Furniture and Materials",Equipment Purchases,,27/02/2024,22/03/2024,10.95,,Asdan  Ltd
Schools Total,Schools,MCC Schools,Pupil Referral Unit,Supplies & Services,"Equipment, Furniture and Materials",Equipment Purchases,,29/02/2024,22/03/2024,21.9,,Asdan  Ltd
Neighbourhood Services,Waste and Street Services,Communities & Place,Fitting Shop Grounds,Supplies & Services,"Equipment, Furniture and Materials",Equipment Purchases,,31/01/2024,21/03/2024,119.22,,Industrial Rugbi Supplies
Schools Total,School Group 2 � Pupil Capacity 144-314,MCC Schools,Cross Ash Primary School,Supplies & Services,"Printing, Stationery and General Office Expenses",Photocopying.,,13/03/2024,22/03/2024,239.27,,Konica Minolta Bus. Solutions (UK) Ltd
Schools Total,School Group 2 � Pupil Capacity 144-314,MCC Schools,Cross Ash Primary School,Supplies & Services,"Printing, Stationery and General Office Expenses",Photocopying.,,12/03/2024,22/03/2024,264.45,,Konica Minolta Bus. Solutions (UK) Ltd
Schools Total,School Group 2 � Pupil Capacity 144-314,MCC Schools,Cross Ash Primary School,Supplies & Services,"Printing, Stationery and General Office Expenses",Stationery,,16/02/2024,22/03/2024,128.95,,Hope Education Ltd
"Commercial, Corporate & landlord Services",Property Services & Facilities Management,Resources,Gwent Police Collaboration,Premises,"Repairs, Alterations & Maintenance of Buildings",Building Improvements / Maintenance,,20/02/2024,11/03/2024,986.09,,A.J Quinn Building Contractors Ltd
"Commercial, Corporate & landlord Services",Property Services & Facilities Management,Resources,Gwent Police Collaboration,Premises,"Repairs, Alterations & Maintenance of Buildings",Building Improvements / Maintenance,,14/03/2024,20/03/2024,380,,Industrial Door Services
Children Services,Children Services Teams,Social Care and Health,Long Term Support Team,Supplies & Services,Services,Professional And Specialist Fees,,20/03/2024,25/03/2024,6653.06,,ProHealthCare Limited
"Commercial, Corporate & landlord Services",Property Services & Facilities Management,Resources,Gwent Police Collaboration,Premises,"Repairs, Alterations & Maintenance of Buildings",Building Improvements / Maintenance,,15/03/2024,20/03/2024,125,,Industrial Door Services
Children Services,Children Services Other,Social Care and Health,External Placements - CLA,Third Party Payments,Third Party,Fostering/Adoption Allowances,,31/01/2024,20/03/2024,4014.19,,National Fostering Agency
Children Services,Children Services Other,Social Care and Health,External Placements - CLA,Third Party Payments,Third Party,Fostering/Adoption Allowances,,31/01/2024,20/03/2024,3712.25,,REDACTED PERSONAL DATA
Children Services,Children Services Other,Social Care and Health,External Placements - CLA,Third Party Payments,Third Party,Fostering/Adoption Allowances,,12/01/2024,20/03/2024,4278.62,,Action For Children
Children Services,Children Services Other,Social Care and Health,External Placements - CLA,Third Party Payments,Third Party,Fostering/Adoption Allowances,,12/01/2024,20/03/2024,7515.2,,Action For Children
Children Services,Children Services Other,Social Care and Health,External Placements - CLA,Third Party Payments,Third Party,Fostering/Adoption Allowances,,31/01/2024,20/03/2024,3875,,National Fostering Agency
Children Services,Children Services Other,Social Care and Health,External Placements - CLA,Third Party Payments,Third Party,Fostering/Adoption Allowances,,01/02/2024,20/03/2024,3534,,Family Fostering Partners
"Commercial, Corporate & landlord Services",Property Services & Facilities Management,Resources,Gwent Police Collaboration,Premises,"Repairs, Alterations & Maintenance of Buildings",Building Improvements / Maintenance,,20/02/2024,11/03/2024,986.99,,A.J Quinn Building Contractors Ltd
"Commercial, Corporate & landlord Services",Asset Management,Resources,MCC Markets,Premises,"Repairs, Alterations & Maintenance of Buildings",Building Improvements / Maintenance,,07/03/2024,11/03/2024,210,,REDACTED PERSONAL DATA
Children Services,Children Services Other,Social Care and Health,External Placements - CLA,Third Party Payments,Third Party,Fostering/Adoption Allowances,,31/01/2024,20/03/2024,3829.12,,National Fostering Agency
Children Services,Children Services Other,Social Care and Health,External Placements - CLA,Third Party Payments,Third Party,Fostering/Adoption Allowances,,29/02/2024,20/03/2024,3755.21,,National Fostering Agency
Children Services,Children Services Other,Social Care and Health,External Placements - CLA,Third Party Payments,Third Party,Fostering/Adoption Allowances,,29/02/2024,20/03/2024,3755.21,,National Fostering Agency
"Commercial, Corporate & landlord Services",Property Services & Facilities Management,Resources,Gwent Police Collaboration,Premises,"Repairs, Alterations & Maintenance of Buildings",Building Improvements / Maintenance,,29/02/2024,14/03/2024,125,,Industrial Door Services
"Commercial, Corporate & landlord Services",Property Services & Facilities Management,Resources,Gwent Police Collaboration,Premises,"Repairs, Alterations & Maintenance of Buildings",Building Improvements / Maintenance,,29/02/2024,14/03/2024,250,,Industrial Door Services
"Commercial, Corporate & landlord Services",Property Services & Facilities Management,Resources,Gwent Police Collaboration,Premises,"Repairs, Alterations & Maintenance of Buildings",Building Improvements / Maintenance,,29/02/2024,14/03/2024,120,,Industrial Door Services
Schools Total,School Group 2 � Pupil Capacity 144-314,MCC Schools,Trellech Primary School,Supplies & Services,Services,Professional And Specialist Fees,,12/02/2024,14/03/2024,600,,County in the Community
Schools Total,School Group 2 � Pupil Capacity 144-314,MCC Schools,Trellech Primary School,Supplies & Services,Services,Professional And Specialist Fees,,19/02/2024,14/03/2024,800,,NJ Educational Services Limited
Finance & Business Devlopment,Learning,MonLife Directorate,Learning,Supplies & Services,Services,Professional And Specialist Fees,,11/03/2024,14/03/2024,170,,Chance Encounters
Finance & Business Devlopment,Attractions,MonLife Directorate,Caldicot Castle & Country Park,Supplies & Services,Services,Professional And Specialist Fees,,11/03/2024,14/03/2024,150,,Chance Encounters
Schools Total,School Group 7 � Pupil Capacity 501-1800,MCC Schools,King Henry 3-19 School,Premises,"Repairs, Alterations & Maintenance of Buildings",Premises Repairs And Maintenance,,14/03/2024,22/03/2024,32.68,,Hope Education Ltd
"Commercial, Corporate & landlord Services",Property Services & Facilities Management,Resources,Gwent Police Collaboration,Premises,"Repairs, Alterations & Maintenance of Buildings",Building Improvements / Maintenance,,09/02/2024,22/03/2024,650,,MORGAN ENVIRONMENTAL LTD
Children Services,Children Services Other,Social Care and Health,External Placements - CLA,Third Party Payments,Third Party,Fostering/Adoption Allowances,,15/03/2024,26/03/2024,7136.82,,Torfaen County Borough Council
"Commercial, Corporate & landlord Services",Property Services & Facilities Management,Resources,Gwent Police Collaboration,Premises,"Repairs, Alterations & Maintenance of Buildings",Building Improvements / Maintenance,,23/03/2024,26/03/2024,59.92,,Lorne Stewart  Plc
Neighbourhood Services,Highways,Communities & Place,Overhead - Mon Highways,Premises,"Repairs, Alterations & Maintenance of Buildings",Building Improvements / Maintenance,,31/01/2024,21/03/2024,2628.42,,EFS Systems (UK) Ltd
Neighbourhood Services,Highways,Communities & Place,Siding and Cleaning,Supplies & Services,"Equipment, Furniture and Materials",Display Equipment,,31/01/2024,21/03/2024,30,,Griffiths Signs & Equipment Co.
Neighbourhood Services,Highways,Communities & Place,Overhead - Mon Highways,Supplies & Services,"Equipment, Furniture and Materials",Display Equipment,,31/01/2024,21/03/2024,504,,Griffiths Signs & Equipment Co.
"Commercial, Corporate & landlord Services",Property Services & Facilities Management,Resources,Gwent Police Collaboration,Premises,"Repairs, Alterations & Maintenance of Buildings",Building Improvements / Maintenance,,29/02/2024,14/03/2024,210,,Industrial Door Services
"Commercial, Corporate & landlord Services",Property Services & Facilities Management,Resources,Gwent Police Collaboration,Premises,"Repairs, Alterations & Maintenance of Buildings",Building Improvements / Maintenance,,08/03/2024,14/03/2024,115.01,,A.J Quinn Building Contractors Ltd
"Commercial, Corporate & landlord Services",Property Services & Facilities Management,Resources,Gwent Police Collaboration,Premises,"Repairs, Alterations & Maintenance of Buildings",Building Improvements / Maintenance,,05/03/2024,14/03/2024,299.69,,A.J Quinn Building Contractors Ltd
"Commercial, Corporate & landlord Services",Property Services & Facilities Management,Resources,Gwent Police Collaboration,Premises,"Repairs, Alterations & Maintenance of Buildings",Building Improvements / Maintenance,,27/02/2024,14/03/2024,199.76,,A.J Quinn Building Contractors Ltd
"Commercial, Corporate & landlord Services",Property Services & Facilities Management,Resources,Programmed Maintenance,Premises,"Repairs, Alterations & Maintenance of Buildings",Premises Repairs And Maintenance,,22/03/2024,25/03/2024,75,,Industrial Door Services
"Commercial, Corporate & landlord Services",Property Services & Facilities Management,Resources,Programmed Maintenance,Premises,"Repairs, Alterations & Maintenance of Buildings",Premises Repairs And Maintenance,,22/03/2024,25/03/2024,120,,Industrial Door Services
Neighbourhood Services,Highways,Communities & Place,Task Orders,Transport,Direct Transport Costs,Transportation of Supplies,,18/03/2024,25/03/2024,250,,Tilcon CG Ltd
"Commercial, Corporate & landlord Services",Property Services & Facilities Management,Resources,Usk Accommodation,Premises,"Repairs, Alterations & Maintenance of Buildings",Premises Repairs And Maintenance,,15/03/2024,20/03/2024,80,,Ambassador Fire & Security LTD
"Commercial, Corporate & landlord Services",Property Services & Facilities Management,Resources,Usk Accommodation,Premises,"Repairs, Alterations & Maintenance of Buildings",Premises Repairs And Maintenance,,15/03/2024,20/03/2024,80,,Ambassador Fire & Security LTD
"Commercial, Corporate & landlord Services",Property Services & Facilities Management,Resources,Usk Accommodation,Premises,"Repairs, Alterations & Maintenance of Buildings",Premises Repairs And Maintenance,,15/03/2024,20/03/2024,518,,Ambassador Fire & Security LTD
People,People Services,People & Governance,Payroll & System Support,Supplies & Services,Services,Training Charges,,24/01/2024,11/03/2024,150,,The Learn Centre Ltd
Neighbourhood Services,Highways,Communities & Place,Stores,Current Assets,Inventories,Stock Received Suspense,,08/03/2024,14/03/2024,779.52,,Colas Limited
Neighbourhood Services,Highways,Communities & Place,Stores,Current Assets,Inventories,Stock Received Suspense,,16/02/2024,21/03/2024,41.04,,Industrial Rugbi Supplies
Neighbourhood Services,Highways,Communities & Place,Stores,Current Assets,Inventories,Stock Received Suspense,,20/02/2024,21/03/2024,4435.8,,Evolve Corporate Ltd T/A PK Safety
Neighbourhood Services,Highways,Communities & Place,Stores,Current Assets,Inventories,Stock Received Suspense,,31/01/2024,21/03/2024,618.25,,Spaldings (UK) Ltd
Neighbourhood Services,Highways,Communities & Place,Stores,Transport,Direct Transport Costs,Transportation of Supplies,,16/02/2024,21/03/2024,6.95,,Industrial Rugbi Supplies
"Placemaking, Highways & Flooding",Highways Dev & Car Parks,Communities & Place,Transport Policy,Supplies & Services,"Equipment, Furniture and Materials",Repairs & Maintenance.,,21/03/2024,26/03/2024,152,,Metric Group Ltd
"Placemaking, Highways & Flooding",Highways Dev & Car Parks,Communities & Place,Transport Policy,Supplies & Services,"Equipment, Furniture and Materials",Repairs & Maintenance.,,21/03/2024,26/03/2024,190,,Metric Group Ltd
Neighbourhood Services,Highways,Communities & Place,Stores,Current Assets,Inventories,Stock Received Suspense,,31/01/2024,21/03/2024,38,,Industrial Rugbi Supplies
Neighbourhood Services,Highways,Communities & Place,Stores,Current Assets,Inventories,Stock Received Suspense,,31/01/2024,21/03/2024,5858.9,,Robert Price Ltd
Neighbourhood Services,Highways,Communities & Place,Stores,Current Assets,Inventories,Stock Received Suspense,,13/02/2024,22/03/2024,3252.96,,Tata Steel UK Ltd
"Facilities, Fleet & Decarbonisation",Transport Department,Communities & Place,Transport,Premises,Energy Costs,Electricity.,,29/02/2024,20/03/2024,4.41,,EDF Energy
"Enterprise, Housing & Community Animation",Business Growth & Enterprise,Communities & Place,CELT Shared Prosperity Fund - Adult,Supplies & Services,Services,Assistance To Clients,,22/02/2024,14/03/2024,150,,Dovetail Counselling
Schools Total,School Group 2 � Pupil Capacity 144-314,MCC Schools,Llantilio Pertholey CiW Primary School (VC),Premises,Ground Maintenance Costs,Grounds Maintenance - Direct.,,05/03/2024,14/03/2024,312.5,,Morris's Grounds Maintenance Ltd
Schools Total,School Group 2 � Pupil Capacity 144-314,MCC Schools,St Mary�s RC Primary School (VA),Premises,Ground Maintenance Costs,Grounds Maintenance - Direct.,,05/03/2024,14/03/2024,233.33,,Morris's Grounds Maintenance Ltd
"Leisure, Youth & Outdoor Adventure",Youth & Education,MonLife Directorate,Gilwern,Supplies & Services,"Equipment, Furniture and Materials",Repairs & Maintenance.,,04/03/2024,13/03/2024,22.22,,Robert Price Ltd
Capital Division,Capital Dept,Capital,Capital Programme,Supplies & Services,"Equipment, Furniture and Materials",Materials & Consumables.,,14/02/2024,13/03/2024,1923.71,,Nisbets
"Enterprise, Housing & Community Animation",General Fund Housing,Communities & Place,Homelessness,Premises,"Repairs, Alterations & Maintenance of Buildings",Security Of Premises.,,05/03/2024,11/03/2024,5819.52,,M J Events Support Ltd
"Commercial, Corporate & landlord Services",Property Services & Facilities Management,Resources,Programmed Maintenance,Premises,"Repairs, Alterations & Maintenance of Buildings",Premises Repairs And Maintenance,,08/03/2024,13/03/2024,630,,Development Plus Limited
Capital Division,Capital Dept,Capital,Capital Programme,Supplies & Services,"Equipment, Furniture and Materials",Materials & Consumables.,,13/02/2024,13/03/2024,357.6,,Nisbets
Finance & Business Devlopment,Leisure Services,MonLife Directorate,Leisure Service Management,Supplies & Services,Services,Training Charges,,11/03/2024,14/03/2024,1695,,The Health & Safety Group Ltd
Schools Total,School Group 2 � Pupil Capacity 144-314,MCC Schools,Gilwern Primary School,Premises,Energy Costs,Electricity.,,13/10/2023,20/03/2024,14.99,,EDF Energy
Schools Total,School Group 2 � Pupil Capacity 144-314,MCC Schools,Gilwern Primary School,Premises,Energy Costs,Electricity.,,13/10/2023,20/03/2024,2144.09,,EDF Energy
Schools Total,School Group 2 � Pupil Capacity 144-314,MCC Schools,Thornwell Primary School,Premises,Energy Costs,Electricity.,,01/03/2024,20/03/2024,21,,EDF Energy
Schools Total,Schools,MCC Schools,Mounton House Special School,Premises,Energy Costs,Electricity.,,06/03/2024,20/03/2024,0.26,,EDF Energy
Schools Total,Schools,MCC Schools,Mounton House Special School,Premises,Energy Costs,Electricity.,,06/03/2024,20/03/2024,44.5,,EDF Energy
Neighbourhood Services,Highways,Communities & Place,Stores,Current Assets,Inventories,Stock Received Suspense,,06/02/2024,21/03/2024,383.2,,Robert Price Ltd
Standards,Early Years,Children & Young People,Flying Start Grant,Supplies & Services,"Equipment, Furniture and Materials",Materials & Consumables.,,01/03/2024,11/03/2024,225,,GL Education Group
Neighbourhood Services,Waste and Street Services,Communities & Place,Refuse & Cleansing Operations,Supplies & Services,"Equipment, Furniture and Materials",Materials & Consumables.,,19/03/2024,25/03/2024,5,,Fasteners & Engineering Suppliers Ltd
Neighbourhood Services,Waste and Street Services,Communities & Place,Fitting Shop Grounds,Supplies & Services,"Equipment, Furniture and Materials",Materials & Consumables.,,26/03/2024,28/03/2024,150,,David Evans Agricultural Ltd
Adult Services,ADULT DISABILITY SERVICES,Social Care and Health,CLDT,Third Party Payments,Third Party,Personal Care.,,21/03/2024,28/03/2024,5772.2,,Homeleigh Care Homes Ltd
Adult Services,Community Care Team,Social Care and Health,Mental Health Care Team,Third Party Payments,Third Party,Personal Care.,,11/03/2024,25/03/2024,190.8,,My Care My Home Ltd
Neighbourhood Services,Waste and Street Services,Communities & Place,Refuse & Cleansing Operations,Supplies & Services,"Equipment, Furniture and Materials",Materials & Consumables.,,20/12/2023,25/03/2024,25,,Eagle Plant
Neighbourhood Services,Waste and Street Services,Communities & Place,Refuse & Cleansing Operations,Supplies & Services,"Equipment, Furniture and Materials",Materials & Consumables.,,15/03/2024,25/03/2024,446.25,,Crownhill Topsoil
Neighbourhood Services,Highways,Communities & Place,Overhead - Mon Highways,Transport,Contract Hire and Operating Leases,Plant Hire Charge,,31/03/2023,20/03/2024,1914,,Drainforce Limited
Neighbourhood Services,Highways,Communities & Place,Overhead - Mon Highways,Transport,Contract Hire and Operating Leases,Plant Hire Charge,,16/09/2022,20/03/2024,2900,,Drainforce Limited
Neighbourhood Services,Highways,Communities & Place,Overhead - Mon Highways,Transport,Contract Hire and Operating Leases,Plant Hire Charge,,20/09/2023,20/03/2024,3190,,Drainforce Limited
Neighbourhood Services,Waste and Street Services,Communities & Place,Refuse & Cleansing Operations,Supplies & Services,"Equipment, Furniture and Materials",Materials & Consumables.,,14/03/2024,20/03/2024,647.74,,Fasteners & Engineering Suppliers Ltd
Neighbourhood Services,Highways,Communities & Place,Internal others,Supplies & Services,"Equipment, Furniture and Materials",Materials & Consumables.,,07/01/2024,20/03/2024,199.5,,Dragon Asphalt Ltd
Adult Services,ADULT DISABILITY SERVICES,Social Care and Health,CLDT,Third Party Payments,Third Party,Personal Care.,,08/03/2024,20/03/2024,2499.1,,The National Autistic Society
Children Services,Children Services Other,Social Care and Health,External Placements - CLA,Third Party Payments,Third Party,Residential.,,11/01/2024,20/03/2024,37046.01,,Action For Children
Children Services,Children Services Other,Social Care and Health,External Placements - CLA,Third Party Payments,Third Party,Residential.,,26/01/2024,20/03/2024,64835.71,,Cambian Childcare Limited
Children Services,Children Services Other,Social Care and Health,External Placements - CLA,Third Party Payments,Third Party,Residential.,,15/02/2024,20/03/2024,68822.93,,Talocher School Priory
Standards,Early Years,Children & Young People,Flying Start Grant,Supplies & Services,"Equipment, Furniture and Materials",Materials & Consumables.,,01/03/2024,11/03/2024,6.27,,GL Education Group
Neighbourhood Services,Highways,Communities & Place,Structures Maintenance,Supplies & Services,"Equipment, Furniture and Materials",Materials & Consumables.,,24/01/2024,28/03/2024,1578.38,,Dragon Asphalt Ltd
Neighbourhood Services,Highways,Communities & Place,Internal others,Supplies & Services,"Equipment, Furniture and Materials",Materials & Consumables.,,24/01/2024,28/03/2024,199.5,,Dragon Asphalt Ltd
Adult Services,Community Care Team,Social Care and Health,Mental Health Care Team,Third Party Payments,Third Party,Personal Care.,,18/03/2024,28/03/2024,68.4,,Lougher Home Care Ltd
Adult Services,Community Care Team,Social Care and Health,Mental Health Care Team,Third Party Payments,Third Party,Personal Care.,,18/03/2024,28/03/2024,91.2,,Lougher Home Care Ltd
Neighbourhood Services,Highways,Communities & Place,Structures Maintenance,Supplies & Services,"Equipment, Furniture and Materials",Materials & Consumables.,,23/01/2024,21/03/2024,676.6,,Dragon Asphalt Ltd
Neighbourhood Services,Highways,Communities & Place,Internal others,Supplies & Services,"Equipment, Furniture and Materials",Materials & Consumables.,,23/01/2024,21/03/2024,197.6,,Dragon Asphalt Ltd
Adult Services,ADULT DISABILITY SERVICES,Social Care and Health,CLDT,Third Party Payments,Third Party,Personal Care.,,26/03/2024,28/03/2024,708.4,,REDACTED PERSONAL DATA
Standards,Early Years,Children & Young People,Flying Start Grant,Supplies & Services,"Equipment, Furniture and Materials",Materials & Consumables.,,17/03/2024,22/03/2024,252.76,,Amazon Payments UK Limited
"Leisure, Youth & Outdoor Adventure",Youth & Education,MonLife Directorate,Gilwern,Transport,Contract Hire and Operating Leases,Plant Hire Charge,,31/12/2023,26/03/2024,326,,Eagle Plant
Adult Services,Community Care Team,Social Care and Health,Mental Health Care Team,Third Party Payments,Third Party,Personal Care.,,05/03/2024,13/03/2024,2900,,Abicare Services Ltd
Adult Services,Community Care Team,Social Care and Health,Mental Health Care Team,Third Party Payments,Third Party,Personal Care.,,27/02/2024,13/03/2024,263.62,,Allied Healthcare Services Limited
Adult Services,Community Care Team,Social Care and Health,Mental Health Care Team,Third Party Payments,Third Party,Personal Care.,,05/03/2024,13/03/2024,3220,,Abicare Services Ltd
Schools Total,School Group 2 � Pupil Capacity 144-314,MCC Schools,St Mary�s RC Primary School (VA),Supplies & Services,Communications and Computing,Telephone - Call Charges,,12/03/2024,20/03/2024,85.6,,Solutions In Technology (IT) Ltd
Adult Services,Community Care Team,Social Care and Health,Mental Health Care Team,Third Party Payments,Third Party,Personal Care.,,05/03/2024,13/03/2024,3220,,Abicare Services Ltd
Adult Services,ADULT DISABILITY SERVICES,Social Care and Health,CLDT,Third Party Payments,Third Party,Personal Care.,,27/02/2024,13/03/2024,213.87,,Allied Healthcare Services Limited
Neighbourhood Services,Highways,Communities & Place,Structures Maintenance,Supplies & Services,"Equipment, Furniture and Materials",Materials & Consumables.,,16/01/2024,21/03/2024,1508.22,,Robert Price Ltd
Schools Total,School Group 1 � Pupil Capacity 1-143,MCC Schools,Llandogo Primary School,Supplies & Services,"Printing, Stationery and General Office Expenses",Stationery,,17/11/2023,22/03/2024,46.82,,Hope Education Ltd
"Enterprise, Housing & Community Animation",Community & Partnerships Development,Communities & Place,Period Dignity in Schools and Communities Grant,Supplies & Services,"Equipment, Furniture and Materials",Equipment Purchases,,18/03/2024,22/03/2024,909.9,,Hey Girls CIC
Schools Total,School Group 2 � Pupil Capacity 144-314,MCC Schools,Archbishop Rowan Williams CiW Primary School (VA),Premises,Energy Costs,Electricity.,,29/02/2024,20/03/2024,2451.92,,EDF Energy
Neighbourhood Services,Waste and Street Services,Communities & Place,Refuse & Cleansing Operations,Premises,Energy Costs,Electricity.,,29/02/2024,20/03/2024,1370.1,,EDF Energy
Neighbourhood Services,Waste and Street Services,Communities & Place,Refuse & Cleansing Operations,Premises,Energy Costs,Electricity.,,29/02/2024,20/03/2024,13.15,,EDF Energy
Finance & Business Devlopment,Attractions,MonLife Directorate,Caldicot Castle & Country Park,Premises,Energy Costs,Electricity.,,05/03/2024,20/03/2024,-1.22,,EDF Energy
Finance & Business Devlopment,Attractions,MonLife Directorate,Caldicot Castle & Country Park,Premises,Energy Costs,Electricity.,,05/03/2024,20/03/2024,-458.15,,EDF Energy
Finance & Business Devlopment,Attractions,MonLife Directorate,Caldicot Castle & Country Park,Premises,Energy Costs,Electricity.,,08/03/2024,20/03/2024,369.85,,EDF Energy
Finance & Business Devlopment,Attractions,MonLife Directorate,Caldicot Castle & Country Park,Premises,Energy Costs,Electricity.,,08/03/2024,20/03/2024,2.52,,EDF Energy
Adult Services,Direct Care,Social Care and Health,Care at Home,Supplies & Services,"Equipment, Furniture and Materials",Health & Safety Equipment.,,28/02/2024,13/03/2024,17.2,,Orbis Protect Limited
Schools Total,School Group 1 � Pupil Capacity 1-143,MCC Schools,Ysgol Gymraeg Y Ffin,Supplies & Services,"Printing, Stationery and General Office Expenses",Photocopying.,,15/06/2023,13/03/2024,523.9,,Konica Minolta Bus. Solutions (UK) Ltd
Schools Total,School Group 7 � Pupil Capacity 501-1800,MCC Schools,Chepstow School,Supplies & Services,"Printing, Stationery and General Office Expenses",Stationery,,06/03/2024,14/03/2024,35.03,,Amazon Payments UK Limited
Schools Total,School Group 7 � Pupil Capacity 501-1800,MCC Schools,Chepstow School,Supplies & Services,"Printing, Stationery and General Office Expenses",Stationery,,07/03/2024,14/03/2024,22.24,,Amazon Payments UK Limited
Schools Total,School Group 7 � Pupil Capacity 501-1800,MCC Schools,Caldicot School,Employees,Indirect Employee Expenses,"Course, Conference And Seminar Fees",,29/02/2024,14/03/2024,135,,Torfaen County Borough Council
Neighbourhood Services,Highways,Communities & Place,Wonastow Road Pumping Station,Premises,Energy Costs,Electricity.,,01/03/2024,20/03/2024,3315.63,,EDF Energy
"Leisure, Youth & Outdoor Adventure",Leisure Services,MonLife Directorate,Caldicot Leisure Centre,Premises,Energy Costs,Electricity.,,01/03/2024,20/03/2024,15069.17,,EDF Energy
"Leisure, Youth & Outdoor Adventure",Leisure Services,MonLife Directorate,Caldicot Leisure Centre,Premises,Energy Costs,Electricity.,,01/03/2024,20/03/2024,114.41,,EDF Energy
Finance & Business Devlopment,Attractions,MonLife Directorate,Caldicot Castle & Country Park,Premises,Energy Costs,Electricity.,,05/03/2024,20/03/2024,993.37,,EDF Energy
"Placemaking, Highways & Flooding",Highways Dev & Car Parks,Communities & Place,Transport Policy,Supplies & Services,"Equipment, Furniture and Materials",Health & Safety Equipment.,,31/01/2024,21/03/2024,68,,Industrial Rugbi Supplies
Neighbourhood Services,Highways,Communities & Place,Overhead - Mon Highways,Supplies & Services,"Equipment, Furniture and Materials",Equipment Purchases,,26/01/2024,21/03/2024,116.85,,Industrial Rugbi Supplies
"Leisure, Youth & Outdoor Adventure",Sports Development,MonLife Directorate,Local Authority Partnership Agreement,Employees,Indirect Employee Expenses,"Course, Conference And Seminar Fees",,19/03/2024,22/03/2024,1000,,Swim Wales
"Leisure, Youth & Outdoor Adventure",Sports Development,MonLife Directorate,Local Authority Partnership Agreement,Employees,Indirect Employee Expenses,"Course, Conference And Seminar Fees",,19/03/2024,22/03/2024,4080,,Swim Wales
"Leisure, Youth & Outdoor Adventure",Sports Development,MonLife Directorate,Local Authority Partnership Agreement,Employees,Indirect Employee Expenses,"Course, Conference And Seminar Fees",,19/03/2024,22/03/2024,2080,,Swim Wales
Finance & Business Devlopment,Attractions,MonLife Directorate,Caldicot Castle & Country Park,Premises,Energy Costs,Electricity.,,05/03/2024,20/03/2024,538.21,,EDF Energy
Neighbourhood Services,Waste and Street Services,Communities & Place,Refuse & Cleansing Operations,Premises,Energy Costs,Electricity.,,29/02/2024,20/03/2024,13.24,,EDF Energy
Neighbourhood Services,Highways,Communities & Place,Overhead - Mon Highways,Supplies & Services,"Equipment, Furniture and Materials",Equipment Purchases,,18/01/2024,21/03/2024,196,,Arco Ltd
Schools Total,School Group 2 � Pupil Capacity 144-314,MCC Schools,Cross Ash Primary School,Supplies & Services,"Printing, Stationery and General Office Expenses",Stationery,,13/03/2024,20/03/2024,6.12,,Hope Education Ltd
Schools Total,School Group 2 � Pupil Capacity 144-314,MCC Schools,Cross Ash Primary School,Supplies & Services,"Printing, Stationery and General Office Expenses",Stationery,,13/03/2024,20/03/2024,14.92,,Hope Education Ltd
Schools Total,School Group 2 � Pupil Capacity 144-314,MCC Schools,Cross Ash Primary School,Supplies & Services,"Printing, Stationery and General Office Expenses",Stationery,,13/03/2024,20/03/2024,36.79,,Hope Education Ltd
Schools Total,School Group 2 � Pupil Capacity 144-314,MCC Schools,Rogiet Primary School,Supplies & Services,"Equipment, Furniture and Materials",Rental / Hire,,15/01/2024,20/03/2024,78.94,,Initial Washrooms & Hygiene
"Enterprise, Housing & Community Animation",General Fund Housing,Communities & Place,Care Line,Supplies & Services,"Equipment, Furniture and Materials",Equipment Purchases,,18/03/2024,20/03/2024,83190,,Doro Care (UK) Limited
Schools Total,School Group 1 � Pupil Capacity 1-143,MCC Schools,Ysgol Gymraeg Y Ffin,Supplies & Services,"Printing, Stationery and General Office Expenses",Photocopying.,,07/09/2023,13/03/2024,256.53,,Konica Minolta Bus. Solutions (UK) Ltd
"Commercial, Corporate & landlord Services",Property Services & Facilities Management,Resources,Reactive Maintenance,Premises,"Repairs, Alterations & Maintenance of Buildings",Building Improvements / Maintenance,,30/01/2024,11/03/2024,49,,EFS Systems (UK) Ltd
"Commercial, Corporate & landlord Services",Property Services & Facilities Management,Resources,Reactive Maintenance,Premises,"Repairs, Alterations & Maintenance of Buildings",Building Improvements / Maintenance,,30/01/2024,11/03/2024,98,,EFS Systems (UK) Ltd
"Commercial, Corporate & landlord Services",Property Services & Facilities Management,Resources,Reactive Maintenance,Premises,"Repairs, Alterations & Maintenance of Buildings",Building Improvements / Maintenance,,30/01/2024,11/03/2024,287.86,,EFS Systems (UK) Ltd
Schools Total,School Group 2 � Pupil Capacity 144-314,MCC Schools,Shirenewton Primary School,Supplies & Services,"Equipment, Furniture and Materials",Furniture Purchases / Replacement,,05/02/2024,11/03/2024,475,,RM Educational Resources Ltd
Schools Total,School Group 2 � Pupil Capacity 144-314,MCC Schools,Shirenewton Primary School,Supplies & Services,"Equipment, Furniture and Materials",Furniture Purchases / Replacement,,05/02/2024,11/03/2024,3.95,,RM Educational Resources Ltd
Finance & Business Devlopment,Borough Theatre,MonLife Directorate,Borough Theatre General,Supplies & Services,"Equipment, Furniture and Materials",Bar,,15/02/2024,11/03/2024,106.43,,Tanners Wines Ltd
"Commercial, Corporate & landlord Services",Property Services & Facilities Management,Resources,Reactive Maintenance,Premises,"Repairs, Alterations & Maintenance of Buildings",Building Improvements / Maintenance,,05/03/2024,20/03/2024,431.19,,A.J Quinn Building Contractors Ltd
Adult Services,INTEGRATED CARE FUND,Social Care and Health,Intermediate Care Fund,Employees,Direct Employee Expenses,Agency Staff,,13/03/2024,20/03/2024,1586.23,,Liquid Personnel
Standards,Inclusions,Children & Young People,Community Focused Schools Childcare Grant,Supplies & Services,Grants and Subscriptions,Grants Payable,,21/03/2024,25/03/2024,3000,,Busy Bodies at Trellech Playgroup
Standards,Inclusions,Children & Young People,Community Focused Schools Childcare Grant,Supplies & Services,Grants and Subscriptions,Grants Payable,,21/03/2024,25/03/2024,1500,,Hopscotch Nursery
Schools Total,School Group 7 � Pupil Capacity 501-1800,MCC Schools,King Henry 3-19 School,Employees,Indirect Employee Expenses,Replacement,,20/03/2024,28/03/2024,123.2,,Teaching Personnel
Schools Total,School Group 7 � Pupil Capacity 501-1800,MCC Schools,King Henry 3-19 School,Employees,Indirect Employee Expenses,Replacement,,20/03/2024,28/03/2024,616,,Teaching Personnel
"Enterprise, Housing & Community Animation",Community & Partnerships Development,Communities & Place,Community Leadership,Supplies & Services,Expenses,Non Employee Training Courses,,11/03/2024,14/03/2024,760,,Vale Of Glamorgan Council
Adult Services,INTEGRATED CARE FUND,Social Care and Health,Intermediate Care Fund,Employees,Direct Employee Expenses,Agency Staff,,14/02/2024,14/03/2024,810.23,,Piers Meadows Recruitment Limited
Adult Services,INTEGRATED CARE FUND,Social Care and Health,Intermediate Care Fund,Employees,Direct Employee Expenses,Agency Staff,,14/02/2024,14/03/2024,9,,Piers Meadows Recruitment Limited
Adult Services,INTEGRATED CARE FUND,Social Care and Health,Intermediate Care Fund,Employees,Direct Employee Expenses,Agency Staff,,14/02/2024,14/03/2024,-9,,Piers Meadows Recruitment Limited
Adult Services,Community Care Team,Social Care and Health,Monmouth Adult Team,Employees,Direct Employee Expenses,Agency Staff,,01/02/2024,14/03/2024,26626.79,,Radis Community Care
"Enterprise, Housing & Community Animation",Community & Partnerships Development,Communities & Place,Community Leadership,Supplies & Services,Expenses,Non Employee Training Courses,,22/02/2024,14/03/2024,245,,Revolution Performance Mindset Limited
Adult Services,INTEGRATED CARE FUND,Social Care and Health,Intermediate Care Fund,Employees,Direct Employee Expenses,Agency Staff,,21/02/2024,14/03/2024,1347.78,,Liquid Personnel
"Commercial, Corporate & landlord Services",Property Services & Facilities Management,Resources,Reactive Maintenance,Premises,"Repairs, Alterations & Maintenance of Buildings",Building Improvements / Maintenance,,29/02/2024,13/03/2024,23,,A.J Quinn Building Contractors Ltd
Children Services,Children Services Teams,Social Care and Health,Long Term Support Team,Employees,Direct Employee Expenses,Agency Staff,,07/03/2024,11/03/2024,1674.35,,Liquid Personnel
"Commercial, Corporate & landlord Services",Property Services & Facilities Management,Resources,Reactive Maintenance,Premises,"Repairs, Alterations & Maintenance of Buildings",Building Improvements / Maintenance,,18/01/2024,11/03/2024,192.63,,A.J Quinn Building Contractors Ltd
"Commercial, Corporate & landlord Services",Property Services & Facilities Management,Resources,Reactive Maintenance,Premises,"Repairs, Alterations & Maintenance of Buildings",Building Improvements / Maintenance,,22/02/2024,11/03/2024,34.5,,A.J Quinn Building Contractors Ltd
"Commercial, Corporate & landlord Services",Property Services & Facilities Management,Resources,Reactive Maintenance,Premises,"Repairs, Alterations & Maintenance of Buildings",Building Improvements / Maintenance,,23/01/2024,11/03/2024,407,,A.J Quinn Building Contractors Ltd
"Commercial, Corporate & landlord Services",Property Services & Facilities Management,Resources,Reactive Maintenance,Premises,"Repairs, Alterations & Maintenance of Buildings",Building Improvements / Maintenance,,23/01/2024,11/03/2024,229.33,,A.J Quinn Building Contractors Ltd
"Commercial, Corporate & landlord Services",Property Services & Facilities Management,Resources,Reactive Maintenance,Premises,"Repairs, Alterations & Maintenance of Buildings",Building Improvements / Maintenance,,29/02/2024,13/03/2024,23,,A.J Quinn Building Contractors Ltd
"Commercial, Corporate & landlord Services",Property Services & Facilities Management,Resources,Reactive Maintenance,Premises,"Repairs, Alterations & Maintenance of Buildings",Building Improvements / Maintenance,,29/02/2024,13/03/2024,23,,A.J Quinn Building Contractors Ltd
Neighbourhood Services,Highways,Communities & Place,Overhead - Mon Highways,Supplies & Services,"Equipment, Furniture and Materials",Small Plant & Tools.,,24/01/2024,21/03/2024,139,,Mon & Border Motor Factors Ltd
Schools Total,Schools,MCC Schools,Pupil Referral Unit,Supplies & Services,"Equipment, Furniture and Materials",Furniture Purchases / Replacement,,18/03/2024,22/03/2024,98.65,,Viking Direct Ltd
"Commercial, Corporate & landlord Services",Property Services & Facilities Management,Resources,Reactive Maintenance,Premises,"Repairs, Alterations & Maintenance of Buildings",Building Improvements / Maintenance,,08/02/2024,20/03/2024,122.4,,A.J Quinn Building Contractors Ltd
"Commercial, Corporate & landlord Services",Property Services & Facilities Management,Resources,Reactive Maintenance,Premises,"Repairs, Alterations & Maintenance of Buildings",Building Improvements / Maintenance,,04/03/2024,20/03/2024,180,,P&P Pest Control
"Commercial, Corporate & landlord Services",Property Services & Facilities Management,Resources,Reactive Maintenance,Premises,"Repairs, Alterations & Maintenance of Buildings",Building Improvements / Maintenance,,29/02/2024,13/03/2024,64.09,,A.J Quinn Building Contractors Ltd
"Commercial, Corporate & landlord Services",Property Services & Facilities Management,Resources,Reactive Maintenance,Premises,"Repairs, Alterations & Maintenance of Buildings",Building Improvements / Maintenance,,08/03/2024,13/03/2024,79.32,,A.J Quinn Building Contractors Ltd
Schools Total,School Group 7 � Pupil Capacity 501-1800,MCC Schools,Monmouth Comprehensive,Supplies & Services,Communications and Computing,IT Hardware,,13/03/2024,19/03/2024,-18.41,,Amazon Payments UK Limited
"Facilities, Fleet & Decarbonisation",De-Carbonisation,Communities & Place,Sustainability,Premises,"Repairs, Alterations & Maintenance of Buildings",Building Improvements / Maintenance,,21/03/2024,25/03/2024,225,,Clenergy EV Ltd
"Enterprise, Housing & Community Animation",General Fund Housing,Communities & Place,Homelessness,Premises,"Repairs, Alterations & Maintenance of Buildings",Building Improvements / Maintenance,,15/03/2024,25/03/2024,565,,Highmore Facilities Ltd
"Enterprise, Housing & Community Animation",General Fund Housing,Communities & Place,Homelessness,Premises,"Repairs, Alterations & Maintenance of Buildings",Building Improvements / Maintenance,,15/03/2024,25/03/2024,860,,Highmore Facilities Ltd
"Facilities, Fleet & Decarbonisation",Property Services -  Cleaning,Communities & Place,Building Cleaning,Supplies & Services,"Equipment, Furniture and Materials",Cleaning Materials.,,31/01/2024,25/03/2024,436.4,,H D Adcock (Nelson) Ltd
Adult Services,Community Care Team,Social Care and Health,Abergavenny Adult Team,Third Party Payments,Third Party,Personal Care.,,11/03/2024,25/03/2024,360.4,,My Care My Home Ltd
Schools Total,School Group 2 � Pupil Capacity 144-314,MCC Schools,Kymin View Primary School,Premises,"Repairs, Alterations & Maintenance of Buildings",Building Improvements / Maintenance,,21/02/2024,11/03/2024,180,,P&P Pest Control
"Facilities, Fleet & Decarbonisation",Transport Department,Communities & Place,Transport,Supplies & Services,"Equipment, Furniture and Materials",Small Plant & Tools.,,29/02/2024,11/03/2024,109.8,,Fast Fluid Power Ltd
Standards,Early Years,Children & Young People,Flying Start Grant,Supplies & Services,Catering,Catering,,03/03/2024,11/03/2024,16.8,,Peter Francis Dairyman Ltd
Adult Services,Community Care Team,Social Care and Health,Abergavenny Adult Team,Third Party Payments,Third Party,Personal Care.,,26/03/2024,28/03/2024,634.08,,REDACTED PERSONAL DATA
Adult Services,Community Care Team,Social Care and Health,Abergavenny Adult Team,Third Party Payments,Third Party,Personal Care.,,26/03/2024,28/03/2024,1393.4,,REDACTED PERSONAL DATA
Adult Services,Community Care Team,Social Care and Health,Monmouth Adult Team,Third Party Payments,Third Party,Personal Care.,,26/03/2024,28/03/2024,9118,,REDACTED PERSONAL DATA
Adult Services,Community Care Team,Social Care and Health,Monmouth Adult Team,Third Party Payments,Third Party,Personal Care.,,26/03/2024,28/03/2024,1802.8,,REDACTED PERSONAL DATA
Adult Services,Community Care Team,Social Care and Health,Monmouth Adult Team,Third Party Payments,Third Party,Personal Care.,,26/03/2024,28/03/2024,917.6,,REDACTED PERSONAL DATA
Adult Services,Community Care Team,Social Care and Health,Monmouth Adult Team,Third Party Payments,Third Party,Personal Care.,,26/03/2024,28/03/2024,233.36,,REDACTED PERSONAL DATA
"Leisure, Youth & Outdoor Adventure",Leisure Services,MonLife Directorate,Monmouth Leisure Centre,Supplies & Services,Catering,Catering,,18/03/2024,22/03/2024,377.08,,Castell Howell Foods Ltd
"Leisure, Youth & Outdoor Adventure",Leisure Services,MonLife Directorate,Monmouth Leisure Centre,Supplies & Services,Catering,Catering,,18/03/2024,22/03/2024,-131.92,,Castell Howell Foods Ltd
"Leisure, Youth & Outdoor Adventure",Leisure Services,MonLife Directorate,Monmouth Leisure Centre,Supplies & Services,Catering,Catering,,18/03/2024,22/03/2024,131.92,,Castell Howell Foods Ltd
Schools Total,School Group 1 � Pupil Capacity 1-143,MCC Schools,Llandogo Primary School,Supplies & Services,"Equipment, Furniture and Materials",Cleaning Materials.,,17/11/2023,22/03/2024,73.88,,Hope Education Ltd
"Enterprise, Housing & Community Animation",General Fund Housing,Communities & Place,Homelessness,Supplies & Services,Communications and Computing,Software Maintenance,,29/12/2023,14/03/2024,312.5,,Locata (Housing Services) Ltd
"Leisure, Youth & Outdoor Adventure",Leisure Services,MonLife Directorate,Monmouth Leisure Centre,Supplies & Services,Catering,Catering,,07/03/2024,20/03/2024,115,,Castell Howell Foods Ltd
"Leisure, Youth & Outdoor Adventure",Leisure Services,MonLife Directorate,Monmouth Leisure Centre,Supplies & Services,Catering,Catering,,12/03/2024,20/03/2024,1586.04,,Costa Coffee
"Leisure, Youth & Outdoor Adventure",Leisure Services,MonLife Directorate,Monmouth Leisure Centre,Supplies & Services,Catering,Catering,,12/03/2024,20/03/2024,434.69,,Costa Coffee
"Leisure, Youth & Outdoor Adventure",Leisure Services,MonLife Directorate,Monmouth Leisure Centre,Supplies & Services,Catering,Catering,,12/03/2024,20/03/2024,-434.69,,Costa Coffee
Schools Total,School Group 2 � Pupil Capacity 144-314,MCC Schools,Thornwell Primary School,Supplies & Services,"Equipment, Furniture and Materials",Small Plant & Tools.,,15/02/2024,13/03/2024,7.98,,Travis Perkins Trading Co Ltd
Schools Total,School Group 2 � Pupil Capacity 144-314,MCC Schools,Thornwell Primary School,Supplies & Services,"Equipment, Furniture and Materials",Small Plant & Tools.,,15/02/2024,13/03/2024,3.84,,Travis Perkins Trading Co Ltd
Schools Total,School Group 2 � Pupil Capacity 144-314,MCC Schools,Thornwell Primary School,Supplies & Services,"Equipment, Furniture and Materials",Small Plant & Tools.,,15/02/2024,13/03/2024,5.17,,Travis Perkins Trading Co Ltd
Adult Services,Community Care Team,Social Care and Health,Abergavenny Adult Team,Third Party Payments,Third Party,Personal Care.,,29/02/2024,13/03/2024,1812.72,,Q Care Ltd
"Leisure, Youth & Outdoor Adventure",Leisure Services,MonLife Directorate,Monmouth Leisure Centre,Supplies & Services,Catering,Catering,,12/03/2024,22/03/2024,13.69,,BRAKES
"Leisure, Youth & Outdoor Adventure",Leisure Services,MonLife Directorate,Monmouth Leisure Centre,Supplies & Services,"Equipment, Furniture and Materials",Cleaning Materials.,,19/03/2024,22/03/2024,111.66,,Newhall Janitorial Ltd
Adult Services,Community Care Team,Social Care and Health,Abergavenny Adult Team,Third Party Payments,Third Party,Personal Care.,,27/02/2024,13/03/2024,13.87,,Allied Healthcare Services Limited
Adult Services,Community Care Team,Social Care and Health,Abergavenny Adult Team,Third Party Payments,Third Party,Personal Care.,,27/02/2024,13/03/2024,936.45,,Allied Healthcare Services Limited
Adult Services,Community Care Team,Social Care and Health,Chepstow Adult Team,Third Party Payments,Third Party,Personal Care.,,26/03/2024,28/03/2024,1091.44,,REDACTED PERSONAL DATA
Adult Services,Community Care Team,Social Care and Health,Chepstow Adult Team,Third Party Payments,Third Party,Personal Care.,,26/03/2024,28/03/2024,2820,,REDACTED PERSONAL DATA
Capital Division,Capital Dept,Capital,Capital Programme,Premises,"Repairs, Alterations & Maintenance of Buildings",Building Improvements / Maintenance,,31/01/2024,21/03/2024,1877.21,,EFS Systems (UK) Ltd
Schools Total,School Group 7 � Pupil Capacity 501-1800,MCC Schools,King Henry 3-19 School,Supplies & Services,"Equipment, Furniture and Materials",Equipment Purchases,,07/11/2023,14/03/2024,840,,Pgl Travel Ltd
Schools Total,School Group 7 � Pupil Capacity 501-1800,MCC Schools,King Henry 3-19 School,Supplies & Services,"Equipment, Furniture and Materials",Equipment Purchases,,02/01/2024,14/03/2024,1080,,Pgl Travel Ltd
Schools Total,School Group 7 � Pupil Capacity 501-1800,MCC Schools,King Henry 3-19 School,Supplies & Services,"Equipment, Furniture and Materials",Equipment Purchases,,02/01/2024,14/03/2024,1320,,Pgl Travel Ltd
"Enterprise, Housing & Community Animation",General Fund Housing,Communities & Place,Homelessness,Supplies & Services,Communications and Computing,Software Annual,,29/11/2023,14/03/2024,7000,,Locata (Housing Services) Ltd
Schools Total,School Group 7 � Pupil Capacity 501-1800,MCC Schools,King Henry 3-19 School,Supplies & Services,"Equipment, Furniture and Materials",Equipment Purchases,,07/11/2023,14/03/2024,840,,Pgl Travel Ltd
Schools Total,School Group 7 � Pupil Capacity 501-1800,MCC Schools,King Henry 3-19 School,Supplies & Services,"Equipment, Furniture and Materials",Equipment Purchases,,02/01/2024,14/03/2024,1080,,Pgl Travel Ltd
Democratic Services,Democratic Services,People & Governance,Police and Crime Commissioner Elections,Supplies & Services,"Printing, Stationery and General Office Expenses",Stationery,,29/02/2024,14/03/2024,4459.45,,MPS Marketing Services Ltd
Schools Total,School Group 2 � Pupil Capacity 144-314,MCC Schools,Ysgol Gymraeg Y Fenni,Premises,"Repairs, Alterations & Maintenance of Buildings",Building Improvements / Maintenance,,29/02/2024,13/03/2024,67.47,,A.J Quinn Building Contractors Ltd
"Policy, Scrutiny & Customer Service",Community Hubs,Chief Executive's Unit,Strategic Management,Supplies & Services,"Printing, Stationery and General Office Expenses",Book Purchases,,07/03/2024,13/03/2024,-17.97,,Amazon Payments UK Limited
People,People Services,People & Governance,Payroll & System Support,Income,Customer and Client Receipts,External Fee Income,,01/03/2024,11/03/2024,-74.46,,Unison
Control Division,Control Dept,Control,Payroll MCCL3,Current Liabilities,Short Term Creditors,Resource Link Payments,,01/03/2024,11/03/2024,273.69,,Unison
Schools Total,School Group 2 � Pupil Capacity 144-314,MCC Schools,Usk CiW Primary School (VC),Premises,"Repairs, Alterations & Maintenance of Buildings",Building Improvements / Maintenance,,29/02/2024,11/03/2024,148.5,,A.J Quinn Building Contractors Ltd
Schools Total,School Group 7 � Pupil Capacity 501-1800,MCC Schools,Monmouth Comprehensive,Premises,"Repairs, Alterations & Maintenance of Buildings",Building Improvements / Maintenance,,29/02/2024,11/03/2024,99.41,,A.J Quinn Building Contractors Ltd
"Facilities, Fleet & Decarbonisation",Transport Department,Communities & Place,Transport,Transport,Direct Transport Costs,All Other Non-Contract Transport Work.,,01/03/2024,11/03/2024,100,,NW Alignments Ltd
Schools Total,School Group 2 � Pupil Capacity 144-314,MCC Schools,Thornwell Primary School,Supplies & Services,"Equipment, Furniture and Materials",Equipment Purchases,,12/12/2022,13/03/2024,16.65,,ESPO
Schools Total,School Group 7 � Pupil Capacity 501-1800,MCC Schools,Chepstow School,Supplies & Services,Communications and Computing,Computer Consumables,,07/03/2024,14/03/2024,58.32,,Amazon Payments UK Limited
Control Division,Control Dept,Control,Payroll Monthly 2 (Schools),Current Liabilities,Short Term Creditors,Resource Link Payments,,28/03/2024,04/04/2024,5,,Caps
Control Division,Control Dept,Control,Payroll Monthly 2 (Schools),Current Liabilities,Short Term Creditors,Resource Link Payments,,28/03/2024,04/04/2024,190.89,,DWP Debt Management
Control Division,Control Dept,Control,Payroll Monthly General,Current Liabilities,Short Term Creditors,Resource Link Payments,,28/03/2024,04/04/2024,12.5,,Caps
Control Division,Control Dept,Control,Payroll Monthly General,Current Liabilities,Short Term Creditors,Resource Link Payments,,28/03/2024,04/04/2024,10,,DWP Debt Management
Control Division,Control Dept,Control,Payroll Monthly General,Current Liabilities,Short Term Creditors,Resource Link Payments,,28/03/2024,04/04/2024,476.55,,DWP CMS Employers
Control Division,Control Dept,Control,Payroll MCCL3,Current Liabilities,Short Term Creditors,Resource Link Payments,,28/03/2024,04/04/2024,22.13,,DWP Debt Management
Control Division,Control Dept,Control,Payroll MCCL3,Current Liabilities,Short Term Creditors,Resource Link Payments,,28/03/2024,04/04/2024,299.04,,Newport City Council
Schools Total,School Group 1 � Pupil Capacity 1-143,MCC Schools,Ysgol Gymraeg Y Ffin,Supplies & Services,"Equipment, Furniture and Materials",Equipment Purchases,,18/03/2024,20/03/2024,1250.6,,ESPO
Schools Total,School Group 7 � Pupil Capacity 501-1800,MCC Schools,Caldicot School,Premises,"Repairs, Alterations & Maintenance of Buildings",Building Improvements / Maintenance,,20/02/2024,20/03/2024,373.88,,A.J Quinn Building Contractors Ltd
Schools Total,School Group 7 � Pupil Capacity 501-1800,MCC Schools,Chepstow School,Premises,"Repairs, Alterations & Maintenance of Buildings",Building Improvements / Maintenance,,29/02/2024,20/03/2024,153.91,,A.J Quinn Building Contractors Ltd
Schools Total,SCHGRP3 � School Group 3 � Pupil Capacity 315-500,MCC Schools,The Dell Primary School,Premises,"Repairs, Alterations & Maintenance of Buildings",Building Improvements / Maintenance,,29/02/2024,20/03/2024,34.5,,A.J Quinn Building Contractors Ltd
Adult Services,Community Care Team,Social Care and Health,Chepstow Adult Team,Third Party Payments,Third Party,Personal Care.,,05/03/2024,13/03/2024,2528,,Abicare Services Ltd
Schools Total,School Group 2 � Pupil Capacity 144-314,MCC Schools,Thornwell Primary School,Premises,"Repairs, Alterations & Maintenance of Buildings",Building Improvements / Maintenance,,29/02/2024,20/03/2024,206,,A.J Quinn Building Contractors Ltd
Schools Total,School Group 7 � Pupil Capacity 501-1800,MCC Schools,Monmouth Comprehensive,Employees,Direct Employee Expenses,Agency Staff,,13/03/2024,19/03/2024,746.99,,Back Office Support Services Ltd (Education Supply Pool)
Schools Total,School Group 7 � Pupil Capacity 501-1800,MCC Schools,Monmouth Comprehensive,Employees,Direct Employee Expenses,Agency Staff,,20/03/2024,25/03/2024,624,,Back Office Support Services Ltd (Education Supply Pool)
Schools Total,School Group 1 � Pupil Capacity 1-143,MCC Schools,Ysgol Gymraeg Y Ffin,Employees,Direct Employee Expenses,Agency Staff,,13/03/2024,25/03/2024,204.71,,Teaching 4 Wales Ltd
Schools Total,School Group 7 � Pupil Capacity 501-1800,MCC Schools,Monmouth Comprehensive,Employees,Direct Employee Expenses,Agency Staff,,20/03/2024,25/03/2024,623.99,,Back Office Support Services Ltd (Education Supply Pool)
Schools Total,School Group 7 � Pupil Capacity 501-1800,MCC Schools,Monmouth Comprehensive,Employees,Direct Employee Expenses,Agency Staff,,20/03/2024,25/03/2024,659.99,,Back Office Support Services Ltd (Education Supply Pool)
Schools Total,School Group 7 � Pupil Capacity 501-1800,MCC Schools,Monmouth Comprehensive,Employees,Direct Employee Expenses,Agency Staff,,20/03/2024,25/03/2024,330,,Back Office Support Services Ltd (Education Supply Pool)
Schools Total,Schools,MCC Schools,Pupil Referral Unit,Employees,Direct Employee Expenses,Agency Staff,,11/03/2024,20/03/2024,1454.97,,Apollo Teaching Services LTD
Schools Total,School Group 2 � Pupil Capacity 144-314,MCC Schools,Usk CiW Primary School (VC),Employees,Direct Employee Expenses,Agency Staff,,05/03/2024,14/03/2024,643.25,,Hays Specialist Recruitment Ltd
Children Services,Supporting Children & Young People Service,Social Care and Health,Family Time Service,Supplies & Services,Services,Professional And Specialist Fees,,01/09/2023,14/03/2024,20.83,,Shield Security
Neighbourhood Services,Highways,Communities & Place,Overhead - Mon Highways,Supplies & Services,Services,Sub-Contractors Fees,,29/02/2024,26/03/2024,156.1,,G D Environmental Services Ltd
Neighbourhood Services,Highways,Communities & Place,Overhead - SWTRA / External,Supplies & Services,Services,Sub-Contractors Fees,,29/02/2024,26/03/2024,212.1,,G D Environmental Services Ltd
Schools Total,School Group 2 � Pupil Capacity 144-314,MCC Schools,Kymin View Primary School,Employees,Direct Employee Expenses,Agency Staff,,21/03/2024,26/03/2024,472,,Prospero Teaching
Schools Total,School Group 2 � Pupil Capacity 144-314,MCC Schools,Kymin View Primary School,Employees,Direct Employee Expenses,Agency Staff,,21/03/2024,26/03/2024,236,,Prospero Teaching
Children Services,Children Services Other,Social Care and Health,Counsel Costs,Supplies & Services,Services,Professional And Specialist Fees,,28/03/2024,28/03/2024,-517.25,,Lextox
Adult Services,INTEGRATED CARE FUND,Social Care and Health,Intermediate Care Fund,Supplies & Services,Services,Sub-Contractors Fees,,22/01/2024,14/03/2024,7897.26,,Aneurin Bevan Local Health Board
Children Services,Supporting Children & Young People Service,Social Care and Health,Family Time Service,Supplies & Services,Services,Professional And Specialist Fees,,01/10/2023,14/03/2024,20.83,,Shield Security
Children Services,Supporting Children & Young People Service,Social Care and Health,Family Time Service,Supplies & Services,Services,Professional And Specialist Fees,,01/11/2023,14/03/2024,20.83,,Shield Security
Schools Total,School Group 2 � Pupil Capacity 144-314,MCC Schools,Rogiet Primary School,Employees,Direct Employee Expenses,Agency Staff,,12/03/2024,14/03/2024,333.39,,TeacherActive
Children Services,Children Services Other,Social Care and Health,Counsel Costs,Supplies & Services,Services,Professional And Specialist Fees,,28/03/2024,28/03/2024,-645.6,,Lextox
Finance & Business Devlopment,Borough Theatre,MonLife Directorate,SPF - Creative Futures,Supplies & Services,Services,Sub-Contractors Fees,,01/03/2024,22/03/2024,1000,,REDACTED PERSONAL DATA
Children Services,Children Services Teams,Social Care and Health,Family Support and Protection Team - South,Supplies & Services,Services,Professional And Specialist Fees,,05/03/2024,22/03/2024,494.2,,Richmond Nursing Agency Ltd
Children Services,Children Services Teams,Social Care and Health,Family Support and Protection Team - South,Supplies & Services,Services,Professional And Specialist Fees,,12/03/2024,22/03/2024,1043,,Richmond Nursing Agency Ltd
Children Services,Children Services Teams,Social Care and Health,Family Support and Protection Team - South,Supplies & Services,Services,Professional And Specialist Fees,,19/03/2024,22/03/2024,260.05,,ProHealthCare Limited
Schools Total,School Group 7 � Pupil Capacity 501-1800,MCC Schools,King Henry 3-19 School,Employees,Direct Employee Expenses,Agency Staff,,10/03/2024,20/03/2024,142.02,,New Directions Education Ltd
Schools Total,School Group 7 � Pupil Capacity 501-1800,MCC Schools,King Henry 3-19 School,Employees,Direct Employee Expenses,Agency Staff,,10/03/2024,20/03/2024,215.6,,New Directions Education Ltd
Schools Total,School Group 7 � Pupil Capacity 501-1800,MCC Schools,King Henry 3-19 School,Employees,Direct Employee Expenses,Agency Staff,,10/03/2024,20/03/2024,165.48,,New Directions Education Ltd
Schools Total,School Group 7 � Pupil Capacity 501-1800,MCC Schools,King Henry 3-19 School,Employees,Direct Employee Expenses,Agency Staff,,10/03/2024,20/03/2024,165.48,,New Directions Education Ltd
Schools Total,School Group 7 � Pupil Capacity 501-1800,MCC Schools,King Henry 3-19 School,Employees,Direct Employee Expenses,Agency Staff,,10/03/2024,20/03/2024,215.6,,New Directions Education Ltd
Schools Total,School Group 7 � Pupil Capacity 501-1800,MCC Schools,King Henry 3-19 School,Employees,Direct Employee Expenses,Agency Staff,,10/03/2024,20/03/2024,215.6,,New Directions Education Ltd
Schools Total,School Group 2 � Pupil Capacity 144-314,MCC Schools,Goytre Fawr Primary School,Employees,Direct Employee Expenses,Agency Staff,,19/03/2024,22/03/2024,354.24,,TeacherActive
Schools Total,School Group 2 � Pupil Capacity 144-314,MCC Schools,Cross Ash Primary School,Employees,Direct Employee Expenses,Agency Staff,,19/03/2024,22/03/2024,238.16,,TeacherActive
Schools Total,School Group 2 � Pupil Capacity 144-314,MCC Schools,Kymin View Primary School,Employees,Direct Employee Expenses,Agency Staff,,20/03/2024,26/03/2024,130,,Suppleo Recruitment Ltd
Schools Total,School Group 2 � Pupil Capacity 144-314,MCC Schools,Kymin View Primary School,Employees,Direct Employee Expenses,Agency Staff,,20/03/2024,26/03/2024,130,,Suppleo Recruitment Ltd
Children Services,Children Services Other,Social Care and Health,Face to Face Counselling,Supplies & Services,Services,Professional And Specialist Fees,,11/03/2024,18/03/2024,287.5,,lmh Child Therapy Services
#N/A,#N/A,#N/A,#N/A,Current Liabilities,Bank Overdraft,Barclays Main Cash Book,,28/03/2024,28/03/2024,620.7,,Lextox
#N/A,#N/A,#N/A,#N/A,Current Liabilities,Bank Overdraft,Barclays Main Cash Book,,28/03/2024,28/03/2024,774.72,,Lextox
Schools Total,School Group 7 � Pupil Capacity 501-1800,MCC Schools,Caldicot School,Supplies & Services,Communications and Computing,Mobile Telephones,,01/03/2024,11/03/2024,15.99,,Amazon Payments UK Limited
Adult Services,Community Care Team,Social Care and Health,Mental Health Care Team,Third Party Payments,Third Party,Personal Care.,,18/03/2024,20/03/2024,303.12,,The National Autistic Society
Neighbourhood Services,Highways,Communities & Place,Internal others,Supplies & Services,"Equipment, Furniture and Materials",Materials & Consumables.,,15/01/2024,20/03/2024,186.2,,Dragon Asphalt Ltd
"Facilities, Fleet & Decarbonisation",Home to School Transport Dept,Communities & Place,SCH Transport,Transport,Contract Hire and Operating Leases,PTU Vehicle Contracts,,29/02/2024,13/03/2024,1170,,REDACTED PERSONAL DATA
Adult Services,Community Care Team,Social Care and Health,Mental Health Care Team,Third Party Payments,Third Party,Personal Care.,,05/03/2024,13/03/2024,2528,,Abicare Services Ltd
Children Services,Children Services Other,Social Care and Health,External Placements - CLA,Third Party Payments,Third Party,Residential.,,19/02/2024,20/03/2024,27241.68,,Talocher School Priory
Children Services,Children Services Other,Social Care and Health,External Placements - CLA,Third Party Payments,Third Party,Residential.,,19/02/2024,20/03/2024,69012.27,,Talocher School Priory
Schools Total,School Group 2 � Pupil Capacity 144-314,MCC Schools,Pembroke Primary School,Supplies & Services,"Equipment, Furniture and Materials",Materials & Consumables.,,13/03/2024,22/03/2024,560,,Forest Sports Education
Neighbourhood Services,Highways,Communities & Place,Internal others,Supplies & Services,"Equipment, Furniture and Materials",Materials & Consumables.,,30/01/2024,26/03/2024,191.9,,Dragon Asphalt Ltd
Neighbourhood Services,Highways,Communities & Place,Internal others,Supplies & Services,"Equipment, Furniture and Materials",Materials & Consumables.,,25/01/2024,26/03/2024,286.9,,Dragon Asphalt Ltd
Neighbourhood Services,Highways,Communities & Place,Potholing,Supplies & Services,"Equipment, Furniture and Materials",Materials & Consumables.,,08/01/2024,26/03/2024,1512.56,,G D Harries & Sons Ltd
Neighbourhood Services,Waste and Street Services,Communities & Place,Refuse & Cleansing Operations,Supplies & Services,"Equipment, Furniture and Materials",Materials & Consumables.,,11/03/2024,18/03/2024,125,,Morris's of Usk Garden Centre & Nurseries Ltd
Neighbourhood Services,Waste and Street Services,Communities & Place,Refuse & Cleansing Operations,Supplies & Services,"Equipment, Furniture and Materials",Materials & Consumables.,,11/03/2024,18/03/2024,8,,Morris's of Usk Garden Centre & Nurseries Ltd
Neighbourhood Services,Waste and Street Services,Communities & Place,Refuse & Cleansing Operations,Supplies & Services,"Equipment, Furniture and Materials",Materials & Consumables.,,11/03/2024,18/03/2024,7.5,,Morris's of Usk Garden Centre & Nurseries Ltd
Neighbourhood Services,Waste and Street Services,Communities & Place,Refuse & Cleansing Operations,Supplies & Services,"Equipment, Furniture and Materials",Materials & Consumables.,,11/03/2024,18/03/2024,24.5,,Morris's of Usk Garden Centre & Nurseries Ltd
Neighbourhood Services,Waste and Street Services,Communities & Place,Refuse & Cleansing Operations,Supplies & Services,"Equipment, Furniture and Materials",Materials & Consumables.,,11/03/2024,18/03/2024,15.75,,Morris's of Usk Garden Centre & Nurseries Ltd
Neighbourhood Services,Waste and Street Services,Communities & Place,Refuse & Cleansing Operations,Supplies & Services,"Equipment, Furniture and Materials",Materials & Consumables.,,08/03/2024,14/03/2024,405,,HM Prison & Probation Service
Neighbourhood Services,Waste and Street Services,Communities & Place,Refuse & Cleansing Operations,Supplies & Services,"Equipment, Furniture and Materials",Materials & Consumables.,,11/03/2024,18/03/2024,15.6,,Morris's of Usk Garden Centre & Nurseries Ltd
Neighbourhood Services,Waste and Street Services,Communities & Place,Refuse & Cleansing Operations,Supplies & Services,"Equipment, Furniture and Materials",Materials & Consumables.,,11/03/2024,18/03/2024,15.6,,Morris's of Usk Garden Centre & Nurseries Ltd
Neighbourhood Services,Waste and Street Services,Communities & Place,Refuse & Cleansing Operations,Supplies & Services,"Equipment, Furniture and Materials",Materials & Consumables.,,11/03/2024,18/03/2024,8.4,,Morris's of Usk Garden Centre & Nurseries Ltd
Neighbourhood Services,Waste and Street Services,Communities & Place,Refuse & Cleansing Operations,Supplies & Services,"Equipment, Furniture and Materials",Materials & Consumables.,,11/03/2024,18/03/2024,9.8,,Morris's of Usk Garden Centre & Nurseries Ltd
Neighbourhood Services,Waste and Street Services,Communities & Place,Refuse & Cleansing Operations,Supplies & Services,"Equipment, Furniture and Materials",Materials & Consumables.,,11/03/2024,18/03/2024,150,,Morris's of Usk Garden Centre & Nurseries Ltd
Neighbourhood Services,Waste and Street Services,Communities & Place,Refuse & Cleansing Operations,Supplies & Services,"Equipment, Furniture and Materials",Materials & Consumables.,,11/03/2024,18/03/2024,90,,Morris's of Usk Garden Centre & Nurseries Ltd
Neighbourhood Services,Waste and Street Services,Communities & Place,Refuse & Cleansing Operations,Supplies & Services,"Equipment, Furniture and Materials",Materials & Consumables.,,11/03/2024,18/03/2024,60,,Morris's of Usk Garden Centre & Nurseries Ltd
"Facilities, Fleet & Decarbonisation",Home to School Transport Dept,Communities & Place,School Transport � External,Transport,Contract Hire and Operating Leases,PTU Vehicle Contracts,,02/03/2024,08/03/2024,1300,,C and P Transport
Children Services,Children Services Teams,Social Care and Health,Long Term Support Team,Third Party Payments,Third Party,Residential.,,05/03/2024,08/03/2024,18399.92,,Midway Transitional Solutions Ltd
Children Services,Children Services Teams,Social Care and Health,Long Term Support Team,Third Party Payments,Third Party,Residential.,,05/03/2024,08/03/2024,18399.92,,Midway Transitional Solutions Ltd
Adult Services,Community Care Team,Social Care and Health,Mental Health Care Team,Third Party Payments,Third Party,Personal Care.,,07/03/2024,08/03/2024,3405.94,,Abbeyfield South Wales Society Ltd
Adult Services,Community Care Team,Social Care and Health,Mental Health Care Team,Third Party Payments,Third Party,Personal Care.,,07/03/2024,08/03/2024,3405.94,,Abbeyfield South Wales Society Ltd
Adult Services,Community Care Team,Social Care and Health,Mental Health Care Team,Third Party Payments,Third Party,Personal Care.,,07/03/2024,08/03/2024,3405.94,,Abbeyfield South Wales Society Ltd
Adult Services,Community Care Team,Social Care and Health,Mental Health Care Team,Third Party Payments,Third Party,Personal Care.,,07/03/2024,08/03/2024,3405.94,,Abbeyfield South Wales Society Ltd
Children Services,Children Services Other,Social Care and Health,External Placements - CLA,Third Party Payments,Third Party,Residential.,,19/02/2024,20/03/2024,-101423.26,,Talocher School Priory
"Facilities, Fleet & Decarbonisation",Transport Department,Communities & Place,Transport,Transport,Direct Transport Costs,Tyres And Tubes,,27/02/2024,19/03/2024,546.94,,Malvern Tyres (Wholesale) Ltd
Neighbourhood Services,Highways,Communities & Place,Task Orders,Supplies & Services,"Equipment, Furniture and Materials",Materials & Consumables.,,18/03/2024,25/03/2024,13608,,Tilcon CG Ltd
Neighbourhood Services,Highways,Communities & Place,Task Orders,Supplies & Services,"Equipment, Furniture and Materials",Materials & Consumables.,,18/03/2024,25/03/2024,1341,,Tilcon CG Ltd
Neighbourhood Services,Highways,Communities & Place,Task Orders,Supplies & Services,"Equipment, Furniture and Materials",Materials & Consumables.,,18/03/2024,25/03/2024,162,,Tilcon CG Ltd
"Facilities, Fleet & Decarbonisation",Home to School Transport Dept,Communities & Place,Home To School Transport,Transport,Direct Transport Costs,Vechicles Repairs and Maintenance,,21/03/2024,25/03/2024,195,,Bulwark Bus & Coach Eng. Ltd
"Facilities, Fleet & Decarbonisation",Home to School Transport Dept,Communities & Place,Home To School Transport,Transport,Direct Transport Costs,Vechicles Repairs and Maintenance,,20/03/2024,25/03/2024,195,,Bulwark Bus & Coach Eng. Ltd
"Facilities, Fleet & Decarbonisation",Transport Department,Communities & Place,Transport,Transport,Direct Transport Costs,Spare Parts,,05/03/2024,11/03/2024,428,,Mon & Border Motor Factors Ltd
"Facilities, Fleet & Decarbonisation",Transport Department,Communities & Place,Transport,Transport,Direct Transport Costs,Spare Parts,,01/03/2024,11/03/2024,29.94,,Motorcare
"Facilities, Fleet & Decarbonisation",Transport Department,Communities & Place,Transport,Transport,Direct Transport Costs,Spare Parts,,29/02/2024,11/03/2024,2799.2,,WasteParts UK Ltd
"Facilities, Fleet & Decarbonisation",Transport Department,Communities & Place,Transport,Transport,Direct Transport Costs,Spare Parts,,05/03/2024,11/03/2024,760.68,,Mon & Border Motor Factors Ltd
"Facilities, Fleet & Decarbonisation",Transport Department,Communities & Place,Transport,Transport,Direct Transport Costs,Spare Parts,,28/02/2024,11/03/2024,526.28,,Dennis Eagle Limited
"Facilities, Fleet & Decarbonisation",Transport Department,Communities & Place,Transport,Transport,Direct Transport Costs,Spare Parts,,01/03/2024,11/03/2024,789.49,,Dennis Eagle Limited
"Facilities, Fleet & Decarbonisation",Transport Department,Communities & Place,Transport,Transport,Direct Transport Costs,Spare Parts,,27/02/2024,26/03/2024,3813.98,,Dennis Eagle Limited
"Facilities, Fleet & Decarbonisation",Transport Department,Communities & Place,Transport,Transport,Direct Transport Costs,Spare Parts,,18/03/2024,26/03/2024,2123.91,,Euro Commercials (South Wales) L
Neighbourhood Services,Highways,Communities & Place,Overhead - SWTRA / External,Supplies & Services,"Equipment, Furniture and Materials",Materials & Consumables.,,13/02/2024,22/03/2024,17.58,,Tata Steel UK Ltd
"Facilities, Fleet & Decarbonisation",Transport Department,Communities & Place,Transport,Transport,Direct Transport Costs,Vehicle Collision Damage Costs,,07/03/2024,13/03/2024,184.69,,Econ Engineering Ltd
"Facilities, Fleet & Decarbonisation",Transport Department,Communities & Place,Transport,Transport,Direct Transport Costs,Spare Parts,,08/03/2024,13/03/2024,69,,Mon & Border Motor Factors Ltd
"Facilities, Fleet & Decarbonisation",Transport Department,Communities & Place,Transport,Transport,Direct Transport Costs,Spare Parts,,04/03/2024,11/03/2024,29.9,,Mon & Border Motor Factors Ltd
"Facilities, Fleet & Decarbonisation",Transport Department,Communities & Place,Transport,Transport,Direct Transport Costs,Spare Parts,,06/03/2024,11/03/2024,15.52,,Motorcare
"Facilities, Fleet & Decarbonisation",Transport Department,Communities & Place,Transport,Transport,Direct Transport Costs,Spare Parts,,04/03/2024,11/03/2024,738,,Mon & Border Motor Factors Ltd
"Facilities, Fleet & Decarbonisation",Transport Department,Communities & Place,Transport,Transport,Direct Transport Costs,Spare Parts,,05/03/2024,11/03/2024,-455.58,,Euro Commercials (South Wales) L
"Facilities, Fleet & Decarbonisation",Transport Department,Communities & Place,Transport,Transport,Direct Transport Costs,Spare Parts,,05/03/2024,11/03/2024,17.37,,Euro Commercials (South Wales) L
"Facilities, Fleet & Decarbonisation",Transport Department,Communities & Place,Transport,Transport,Direct Transport Costs,Spare Parts,,06/03/2024,11/03/2024,79.8,,Mon & Border Motor Factors Ltd
"Facilities, Fleet & Decarbonisation",Transport Department,Communities & Place,Transport,Transport,Direct Transport Costs,Vehicle Collision Damage Costs,,05/03/2024,11/03/2024,498.56,,AEBI SCHMIDT UK Ltd
"Facilities, Fleet & Decarbonisation",Transport Department,Communities & Place,Transport,Transport,Direct Transport Costs,Spare Parts,,07/03/2024,13/03/2024,672.82,,Dennis Eagle Limited
Standards,Additional Learning Needs,Children & Young People,ALN Transport,Employees,Direct Employee Expenses,Travel Claims Allowance,,10/03/2024,13/03/2024,554.4,,REDACTED PERSONAL DATA
Standards,Additional Learning Needs,Children & Young People,ALN Transport,Employees,Direct Employee Expenses,Travel Claims Allowance,,10/03/2024,13/03/2024,2404.8,,REDACTED PERSONAL DATA
Schools Total,School Group 2 � Pupil Capacity 144-314,MCC Schools,Rogiet Primary School,Transport,Direct Transport Costs,Spare Parts,,19/03/2024,22/03/2024,520,,Skirrid Mountain Productions
"Facilities, Fleet & Decarbonisation",Home to School Transport Dept,Communities & Place,Special Educational Needs,Transport,Direct Transport Costs,Petrol,,04/03/2024,08/03/2024,135,,REDACTED PERSONAL DATA
"Facilities, Fleet & Decarbonisation",Home to School Transport Dept,Communities & Place,Home To School Transport,Transport,Direct Transport Costs,Vechicles Repairs and Maintenance,,29/02/2024,06/03/2024,2688.59,,Wales and West Truck and Bus
"Facilities, Fleet & Decarbonisation",Home to School Transport Dept,Communities & Place,Home To School Transport,Transport,Direct Transport Costs,Vechicles Repairs and Maintenance,,28/02/2024,06/03/2024,264.5,,Kudos Compamies Ltd
"Facilities, Fleet & Decarbonisation",Home to School Transport Dept,Communities & Place,Home To School Transport,Transport,Direct Transport Costs,Vechicles Repairs and Maintenance,,29/02/2024,06/03/2024,34.95,,Fast Fluid Power Ltd
"Facilities, Fleet & Decarbonisation",Home to School Transport Dept,Communities & Place,Home To School Transport,Transport,Direct Transport Costs,Vechicles Repairs and Maintenance,,04/03/2024,06/03/2024,195,,Bulwark Bus & Coach Eng. Ltd
"Facilities, Fleet & Decarbonisation",Home to School Transport Dept,Communities & Place,Home To School Transport,Transport,Direct Transport Costs,Vechicles Repairs and Maintenance,,04/03/2024,06/03/2024,195,,Bulwark Bus & Coach Eng. Ltd
"Facilities, Fleet & Decarbonisation",Home to School Transport Dept,Communities & Place,Home To School Transport,Transport,Direct Transport Costs,Vechicles Repairs and Maintenance,,04/03/2024,06/03/2024,195,,Bulwark Bus & Coach Eng. Ltd
"Facilities, Fleet & Decarbonisation",Transport Department,Communities & Place,Transport,Transport,Contract Hire and Operating Leases,Vehicle Hire Charge,,31/12/2023,11/03/2024,752.99,,Runtech Ltd
"Facilities, Fleet & Decarbonisation",Transport Department,Communities & Place,Transport,Transport,Contract Hire and Operating Leases,Vehicle Hire Charge,,31/01/2024,11/03/2024,752.99,,Runtech Ltd
Schools Total,School Group 2 � Pupil Capacity 144-314,MCC Schools,Llantilio Pertholey CiW Primary School (VC),Supplies & Services,"Equipment, Furniture and Materials",Materials & Consumables.,,14/03/2024,20/03/2024,33.3,,Out Of The Ark Music
Schools Total,School Group 7 � Pupil Capacity 501-1800,MCC Schools,Caldicot School,Supplies & Services,"Equipment, Furniture and Materials",Materials & Consumables.,,12/03/2024,20/03/2024,10.3,,Amazon Payments UK Limited
Schools Total,School Group 7 � Pupil Capacity 501-1800,MCC Schools,Caldicot School,Supplies & Services,"Equipment, Furniture and Materials",Materials & Consumables.,,12/03/2024,20/03/2024,9.4,,Amazon Payments UK Limited
"Facilities, Fleet & Decarbonisation",Transport Department,Communities & Place,Transport,Supplies & Services,"Equipment, Furniture and Materials",Materials & Consumables.,,05/03/2024,11/03/2024,72,,Mon & Border Motor Factors Ltd
"Facilities, Fleet & Decarbonisation",Transport Department,Communities & Place,Transport,Supplies & Services,"Equipment, Furniture and Materials",Materials & Consumables.,,05/03/2024,11/03/2024,19.92,,Mon & Border Motor Factors Ltd
"Facilities, Fleet & Decarbonisation",Transport Department,Communities & Place,Transport,Transport,Contract Hire and Operating Leases,Vehicle Hire Charge,,31/01/2024,11/03/2024,2945.95,,Endurance Vehicle Solutions
"Facilities, Fleet & Decarbonisation",Transport Department,Communities & Place,Transport,Transport,Contract Hire and Operating Leases,Vehicle Hire Charge,,31/01/2024,11/03/2024,3211.71,,Endurance Vehicle Solutions
Schools Total,School Group 2 � Pupil Capacity 144-314,MCC Schools,Our Lady & St Michael's (OLSM) RC Primary School (VA),Premises,Catering,Catering Equipment,,08/03/2024,22/03/2024,180.03,,Castell Howell Foods Ltd
Schools Total,School Group 2 � Pupil Capacity 144-314,MCC Schools,Cross Ash Primary School,Supplies & Services,"Equipment, Furniture and Materials",Materials & Consumables.,,14/03/2024,22/03/2024,15.58,,Yorkshire Purchasing
Schools Total,School Group 7 � Pupil Capacity 501-1800,MCC Schools,Caldicot School,Supplies & Services,"Equipment, Furniture and Materials",Materials & Consumables.,,10/03/2024,22/03/2024,32.22,,Amazon Payments UK Limited
Schools Total,School Group 7 � Pupil Capacity 501-1800,MCC Schools,Caldicot School,Supplies & Services,"Equipment, Furniture and Materials",Materials & Consumables.,,10/03/2024,22/03/2024,16.95,,Amazon Payments UK Limited
"Facilities, Fleet & Decarbonisation",Transport Department,Communities & Place,Transport,Transport,Contract Hire and Operating Leases,Vehicle Hire Charge,,29/02/2024,26/03/2024,3726,,Endurance Vehicle Solutions
Schools Total,School Group 2 � Pupil Capacity 144-314,MCC Schools,Cross Ash Primary School,Supplies & Services,"Equipment, Furniture and Materials",Materials & Consumables.,,26/01/2024,22/03/2024,114,,Hope Education Ltd
Schools Total,School Group 7 � Pupil Capacity 501-1800,MCC Schools,King Henry 3-19 School,Supplies & Services,"Equipment, Furniture and Materials",Materials & Consumables.,,02/03/2024,14/03/2024,653.04,,REDACTED PERSONAL DATA
Schools Total,School Group 2 � Pupil Capacity 144-314,MCC Schools,Llantilio Pertholey CiW Primary School (VC),Supplies & Services,"Equipment, Furniture and Materials",Materials & Consumables.,,06/03/2024,14/03/2024,33.99,,Amazon Payments UK Limited
Schools Total,School Group 2 � Pupil Capacity 144-314,MCC Schools,Llantilio Pertholey CiW Primary School (VC),Supplies & Services,"Equipment, Furniture and Materials",Materials & Consumables.,,06/03/2024,14/03/2024,10.81,,Amazon Payments UK Limited
"Facilities, Fleet & Decarbonisation",Transport Department,Communities & Place,Transport,Supplies & Services,"Equipment, Furniture and Materials",Materials & Consumables.,,08/03/2024,13/03/2024,117.3,,Mon & Border Motor Factors Ltd
Schools Total,School Group 7 � Pupil Capacity 501-1800,MCC Schools,Caldicot School,Supplies & Services,"Equipment, Furniture and Materials",Materials & Consumables.,,10/03/2024,20/03/2024,10.61,,Amazon Payments UK Limited
Schools Total,School Group 7 � Pupil Capacity 501-1800,MCC Schools,Caldicot School,Supplies & Services,"Equipment, Furniture and Materials",Materials & Consumables.,,10/03/2024,20/03/2024,5.82,,Amazon Payments UK Limited
Schools Total,School Group 7 � Pupil Capacity 501-1800,MCC Schools,Caldicot School,Supplies & Services,"Equipment, Furniture and Materials",Materials & Consumables.,,27/02/2024,11/03/2024,16.66,,Amazon Payments UK Limited
"Facilities, Fleet & Decarbonisation",Transport Department,Communities & Place,Transport,Transport,Contract Hire and Operating Leases,Vehicle Hire Charge,,26/02/2024,11/03/2024,65.2,,Endurance Vehicle Solutions
"Facilities, Fleet & Decarbonisation",Transport Department,Communities & Place,Transport,Transport,Contract Hire and Operating Leases,Vehicle Hire Charge,,27/02/2024,11/03/2024,3570,,L C Vehicle Hire
"Facilities, Fleet & Decarbonisation",Transport Department,Communities & Place,Transport,Transport,Contract Hire and Operating Leases,Vehicle Hire Charge,,29/02/2024,11/03/2024,1785,,N D Brown Ltd
Schools Total,School Group 7 � Pupil Capacity 501-1800,MCC Schools,Caldicot School,Supplies & Services,"Equipment, Furniture and Materials",Materials & Consumables.,,12/03/2024,14/03/2024,80.71,,Newhall Janitorial Ltd
Schools Total,School Group 7 � Pupil Capacity 501-1800,MCC Schools,Caldicot School,Supplies & Services,"Equipment, Furniture and Materials",Materials & Consumables.,,23/02/2024,14/03/2024,1124.99,,Capital Play
Schools Total,School Group 7 � Pupil Capacity 501-1800,MCC Schools,Caldicot School,Supplies & Services,"Equipment, Furniture and Materials",Materials & Consumables.,,23/02/2024,14/03/2024,0.01,,Capital Play
Schools Total,School Group 7 � Pupil Capacity 501-1800,MCC Schools,Caldicot School,Supplies & Services,"Equipment, Furniture and Materials",Materials & Consumables.,,23/02/2024,14/03/2024,220,,Capital Play
Schools Total,School Group 7 � Pupil Capacity 501-1800,MCC Schools,Chepstow School,Supplies & Services,"Equipment, Furniture and Materials",Materials & Consumables.,,08/03/2024,14/03/2024,59.32,,Amazon Payments UK Limited
"Facilities, Fleet & Decarbonisation",Catering Services,Communities & Place,Schools Catering,Supplies & Services,"Equipment, Furniture and Materials",Materials & Consumables.,,14/03/2024,22/03/2024,1162.6,,Klipspringer
Schools Total,School Group 7 � Pupil Capacity 501-1800,MCC Schools,Caldicot School,Supplies & Services,"Equipment, Furniture and Materials",Materials & Consumables.,,01/02/2024,11/03/2024,16.66,,Amazon Payments UK Limited
Schools Total,School Group 7 � Pupil Capacity 501-1800,MCC Schools,Caldicot School,Supplies & Services,"Equipment, Furniture and Materials",Materials & Consumables.,,01/03/2024,11/03/2024,17,,Amazon Payments UK Limited
Schools Total,School Group 7 � Pupil Capacity 501-1800,MCC Schools,Caldicot School,Supplies & Services,"Equipment, Furniture and Materials",Materials & Consumables.,,04/03/2024,11/03/2024,9.91,,Amazon Payments UK Limited
Schools Total,School Group 7 � Pupil Capacity 501-1800,MCC Schools,Caldicot School,Supplies & Services,"Equipment, Furniture and Materials",Materials & Consumables.,,01/03/2024,11/03/2024,11.48,,Amazon Payments UK Limited
Adult Services,Community Care Team,Social Care and Health,Chepstow Adult Team,Third Party Payments,Third Party,Personal Care.,,13/02/2024,11/03/2024,3400.6,,Seren Healthcare Solutions Ltd
Adult Services,Community Care Team,Social Care and Health,Chepstow Adult Team,Third Party Payments,Third Party,Personal Care.,,13/02/2024,11/03/2024,2410.8,,Seren Healthcare Solutions Ltd
Adult Services,Community Care Team,Social Care and Health,Chepstow Adult Team,Third Party Payments,Third Party,Personal Care.,,13/02/2024,11/03/2024,14768.6,,Seren Healthcare Solutions Ltd
"Policy, Scrutiny & Customer Service",Community Hubs,Chief Executive's Unit,Strategic Management,Supplies & Services,Communications and Computing,IT Hardware,,21/02/2024,22/03/2024,41.76,,Bibliotheca Ltd
Schools Total,School Group 7 � Pupil Capacity 501-1800,MCC Schools,King Henry 3-19 School,Supplies & Services,"Equipment, Furniture and Materials",Equipment Purchases,,19/03/2024,22/03/2024,95,,Better Equipped Educational Supplies
Schools Total,School Group 7 � Pupil Capacity 501-1800,MCC Schools,King Henry 3-19 School,Supplies & Services,"Equipment, Furniture and Materials",Equipment Purchases,,06/03/2024,18/03/2024,1140,,Sports Directory
Schools Total,School Group 7 � Pupil Capacity 501-1800,MCC Schools,King Henry 3-19 School,Supplies & Services,"Equipment, Furniture and Materials",Equipment Purchases,,06/03/2024,18/03/2024,114,,Sports Directory
Capital Division,Capital Dept,Capital,Capital Programme,Supplies & Services,Services,Professional And Specialist Fees,,11/03/2024,18/03/2024,98446.45,,Horan Construction Limited
Schools Total,School Group 7 � Pupil Capacity 501-1800,MCC Schools,King Henry 3-19 School,Supplies & Services,"Equipment, Furniture and Materials",Equipment Purchases,,13/03/2024,18/03/2024,236,,Axcis Education Recruitment
Schools Total,School Group 2 � Pupil Capacity 144-314,MCC Schools,Gilwern Primary School,Supplies & Services,"Equipment, Furniture and Materials",Equipment Purchases,,11/03/2024,18/03/2024,14320,,Playwood
Schools Total,School Group 7 � Pupil Capacity 501-1800,MCC Schools,King Henry 3-19 School,Supplies & Services,"Equipment, Furniture and Materials",Equipment Purchases,,06/03/2024,18/03/2024,165,,Sports Directory
Schools Total,School Group 7 � Pupil Capacity 501-1800,MCC Schools,King Henry 3-19 School,Supplies & Services,"Equipment, Furniture and Materials",Equipment Purchases,,06/03/2024,18/03/2024,12.95,,Sports Directory
"Facilities, Fleet & Decarbonisation",Transport Planning,Communities & Place,Public Transport Subsidy Grant,Transport,Public Transport,Bus Subsidies,,29/02/2024,14/03/2024,36898.92,,New Adventure Travel
"Facilities, Fleet & Decarbonisation",Transport Planning,Communities & Place,Public Transport Subsidy Grant,Transport,Public Transport,Travel Concessions,,29/02/2024,14/03/2024,3813.08,,New Adventure Travel
"Facilities, Fleet & Decarbonisation",Transport Planning,Communities & Place,Public Transport Subsidy Grant,Transport,Public Transport,Travel Concessions,,11/03/2024,14/03/2024,840.21,,Stagecoach Services Ltd
"Facilities, Fleet & Decarbonisation",Transport Planning,Communities & Place,Public Transport Subsidy Grant,Transport,Public Transport,Travel Concessions,,11/03/2024,14/03/2024,4840.21,,Stagecoach Services Ltd
Schools Total,School Group 7 � Pupil Capacity 501-1800,MCC Schools,Monmouth Comprehensive,Supplies & Services,"Printing, Stationery and General Office Expenses",Book Purchases,,07/03/2024,14/03/2024,51,,Scholastic Ltd
Schools Total,School Group 7 � Pupil Capacity 501-1800,MCC Schools,Monmouth Comprehensive,Supplies & Services,"Printing, Stationery and General Office Expenses",Book Purchases,,11/03/2024,14/03/2024,15,,Rossiter Books
Schools Total,SCHGRP3 � School Group 3 � Pupil Capacity 315-500,MCC Schools,Overmonnow Primary School,Supplies & Services,Communications and Computing,Computer Consumables,,13/03/2024,18/03/2024,84.95,,Inkjets and Toners
Adult Services,INTEGRATED CARE FUND,Social Care and Health,Intermediate Care Fund,Supplies & Services,"Equipment, Furniture and Materials",Removal Costs,,06/03/2024,08/03/2024,60,,Haven Mobility
Capital Division,Capital Dept,Capital,Capital Programme,Supplies & Services,Services,Professional And Specialist Fees,,05/03/2024,08/03/2024,1000,,WSP UK Limited
Adult Services,Direct Care,Social Care and Health,Budden Crescent,Income,Customer and Client Receipts,Waste Disposal,,06/03/2024,08/03/2024,23.62,,Elite Paper Solutions
Adult Services,Community Care Team,Social Care and Health,Chepstow Adult Team,Third Party Payments,Third Party,Personal Care.,,08/03/2024,11/03/2024,15650.6,,Seren Healthcare Solutions Ltd
Adult Services,Community Care Team,Social Care and Health,Chepstow Adult Team,Third Party Payments,Third Party,Personal Care.,,08/03/2024,11/03/2024,15650.6,,Seren Healthcare Solutions Ltd
Schools Total,School Group 2 � Pupil Capacity 144-314,MCC Schools,Usk CiW Primary School (VC),Premises,"Repairs, Alterations & Maintenance of Buildings",Building Improvements / Maintenance,,02/02/2024,13/03/2024,19116,,Immersive Interactive Ltd
Schools Total,School Group 2 � Pupil Capacity 144-314,MCC Schools,Goytre Fawr Primary School,Premises,"Repairs, Alterations & Maintenance of Buildings",Building Improvements / Maintenance,,15/01/2024,13/03/2024,105.94,,Initial Washrooms & Hygiene
Schools Total,School Group 7 � Pupil Capacity 501-1800,MCC Schools,Monmouth Comprehensive,Supplies & Services,"Printing, Stationery and General Office Expenses",Book Purchases,,28/02/2024,22/04/2024,40.99,,Hachette UK Distrubution Ltd
Schools Total,School Group 7 � Pupil Capacity 501-1800,MCC Schools,Monmouth Comprehensive,Supplies & Services,"Printing, Stationery and General Office Expenses",Book Purchases,,28/02/2024,22/04/2024,3.5,,Hachette UK Distrubution Ltd
Capital Division,Capital Dept,Capital,Capital Programme,Supplies & Services,Services,Professional And Specialist Fees,,01/03/2024,13/03/2024,24587.85,,Atkins ltd
"Policy, Scrutiny & Customer Service",Community Hubs,Chief Executive's Unit,Prison Libraries,Supplies & Services,"Printing, Stationery and General Office Expenses",Book Purchases,,04/03/2024,13/03/2024,270.47,,Askews & Holts Library Services Ltd
Schools Total,School Group 7 � Pupil Capacity 501-1800,MCC Schools,King Henry 3-19 School,Supplies & Services,"Equipment, Furniture and Materials",Equipment Purchases,,06/03/2024,13/03/2024,112.46,,Hope Education Ltd
Schools Total,School Group 7 � Pupil Capacity 501-1800,MCC Schools,King Henry 3-19 School,Supplies & Services,"Equipment, Furniture and Materials",Equipment Purchases,,06/03/2024,13/03/2024,70.03,,Hope Education Ltd
Schools Total,School Group 2 � Pupil Capacity 144-314,MCC Schools,Ysgol Gymraeg Y Fenni,Supplies & Services,"Equipment, Furniture and Materials",Equipment Purchases,,29/02/2024,13/03/2024,12.64,,Amazon Payments UK Limited
"Commercial, Corporate & landlord Services",Property Services & Facilities Management,Resources,Gwent Police Collaboration,Premises,"Repairs, Alterations & Maintenance of Buildings",Building Improvements / Maintenance,,08/03/2024,13/03/2024,94.3,,A.J Quinn Building Contractors Ltd
"Commercial, Corporate & landlord Services",Property Services & Facilities Management,Resources,Gwent Police Collaboration,Premises,"Repairs, Alterations & Maintenance of Buildings",Building Improvements / Maintenance,,20/02/2024,11/03/2024,298.66,,A.J Quinn Building Contractors Ltd
"Commercial, Corporate & landlord Services",Property Services & Facilities Management,Resources,Gwent Police Collaboration,Premises,"Repairs, Alterations & Maintenance of Buildings",Building Improvements / Maintenance,,13/02/2024,11/03/2024,196.86,,A.J Quinn Building Contractors Ltd
"Commercial, Corporate & landlord Services",Property Services & Facilities Management,Resources,Gwent Police Collaboration,Premises,"Repairs, Alterations & Maintenance of Buildings",Building Improvements / Maintenance,,20/02/2024,11/03/2024,1016.89,,A.J Quinn Building Contractors Ltd
"Commercial, Corporate & landlord Services",Property Services & Facilities Management,Resources,Gwent Police Collaboration,Premises,"Repairs, Alterations & Maintenance of Buildings",Building Improvements / Maintenance,,13/02/2024,11/03/2024,261.69,,A.J Quinn Building Contractors Ltd
People,People Services,People & Governance,Payroll & System Support,Supplies & Services,Services,Professional And Specialist Fees,,15/02/2024,11/03/2024,200,,ResourceLink Aurora User Group
Democratic Services,Democratic Services,People & Governance,Electoral Management,Supplies & Services,Communications and Computing,Postages,,23/01/2024,11/03/2024,35.28,,Royal Mail
"Commercial, Corporate & landlord Services",Property Services & Facilities Management,Resources,Gwent Police Collaboration,Premises,"Repairs, Alterations & Maintenance of Buildings",Building Improvements / Maintenance,,29/02/2024,13/03/2024,23,,A.J Quinn Building Contractors Ltd
Countryside & Culture,Countryside,MonLife Directorate,Gwent Green Grid Partnership (Colette Bosley),Supplies & Services,Services,Professional And Specialist Fees,,07/03/2024,14/03/2024,1250,,REDACTED PERSONAL DATA
"Placemaking, Highways & Flooding",Highways Dev & Car Parks,Communities & Place,Transport Policy,Supplies & Services,Communications and Computing,Postages,,21/03/2024,26/03/2024,37.5,,Metric Group Ltd
Finance & Business Devlopment,Borough Theatre,MonLife Directorate,Borough Theatre General,Supplies & Services,"Equipment, Furniture and Materials",Promotions And Exhibitions,,19/03/2024,22/03/2024,563.6,,REDACTED PERSONAL DATA
Neighbourhood Services,Highways,Communities & Place,Structures Maintenance,Supplies & Services,"Equipment, Furniture and Materials",Display Equipment,,25/01/2024,21/03/2024,998,,Griffiths Signs & Equipment Co.
"Policy, Scrutiny & Customer Service",Community Hubs,Chief Executive's Unit,Community Hub - Monmouth,Supplies & Services,Services,Professional And Specialist Fees,,01/12/2023,20/03/2024,30,,Shield Security
"Policy, Scrutiny & Customer Service",Community Hubs,Chief Executive's Unit,Community Hub - Monmouth,Supplies & Services,Services,Professional And Specialist Fees,,01/02/2024,20/03/2024,30,,Shield Security
Adult Services,Direct Care,Social Care and Health,Budden Crescent,Premises,"Repairs, Alterations & Maintenance of Buildings",Building Improvements / Maintenance,,20/02/2023,20/03/2024,316.26,,A.J Quinn Building Contractors Ltd
"Commercial, Corporate & landlord Services",Property Services & Facilities Management,Resources,Gwent Police Collaboration,Premises,"Repairs, Alterations & Maintenance of Buildings",Building Improvements / Maintenance,,29/02/2024,13/03/2024,23,,A.J Quinn Building Contractors Ltd
Children Services,Children Services Other,Social Care and Health,External Placements - CLA,Third Party Payments,Third Party,Fostering/Adoption Allowances,,01/12/2023,20/03/2024,3420,,Family Fostering Partners
Children Services,Children Services Teams,Social Care and Health,Long Term Support Team,Supplies & Services,Services,Professional And Specialist Fees,,18/03/2024,22/03/2024,11157.75,,Nurtured Future Living LTD
Neighbourhood Services,Highways,Communities & Place,External Contracts,Supplies & Services,Services,Professional And Specialist Fees,,26/02/2024,26/03/2024,4410,,Quantum Traffic Management
Public Protection,Public Protection,Social Care and Health,Animal Licensing Wales,Supplies & Services,Services,Professional And Specialist Fees,,06/03/2024,14/03/2024,18215.34,,Worcester Regulatory Services (Bromsgrove District Council)
Public Protection,Public Protection,Social Care and Health,Trading Standards Wales,Supplies & Services,Services,Professional And Specialist Fees,,07/03/2024,14/03/2024,168.75,,Kenyon Block Consultants Ltd
Public Protection,Public Protection,Social Care and Health,Animal Licensing Wales,Supplies & Services,Services,Professional And Specialist Fees,,04/03/2024,14/03/2024,160.8,,Green Apple Catering
Public Protection,Public Protection,Social Care and Health,Animal Licensing Wales,Supplies & Services,Services,Professional And Specialist Fees,,25/01/2024,14/03/2024,4525,,Aquithie Boarding and Quarantine Kennels and Cattery
Public Protection,Public Protection,Social Care and Health,Animal Health,Supplies & Services,Services,Professional And Specialist Fees,,08/03/2024,14/03/2024,1140,,Wrexham County Borough Council
Children Services,Children Services Teams,Social Care and Health,Long Term Support Team,Supplies & Services,Services,Professional And Specialist Fees,,06/03/2024,14/03/2024,2496.4,,Cheka Safeguarding Services Limited
Finance,Revenues Department,Resources,Cashiers,Supplies & Services,Services,Professional And Specialist Fees,,29/02/2024,14/03/2024,1.06,,Security Plus Limited
"Policy, Scrutiny & Customer Service",Community Education,Chief Executive's Unit,Community Education Adult General,Supplies & Services,"Equipment, Furniture and Materials",Display Materials,,08/03/2024,14/03/2024,596.89,,Panel Warehouse
Children Services,Children Services Teams,Social Care and Health,Long Term Support Team,Supplies & Services,Services,Professional And Specialist Fees,,05/03/2024,08/03/2024,4035.81,,Richmond Nursing Agency Ltd
Children Services,Children Services Teams,Social Care and Health,Long Term Support Team,Supplies & Services,Services,Professional And Specialist Fees,,05/03/2024,08/03/2024,6215.31,,Richmond Nursing Agency Ltd
Schools Total,School Group 2 � Pupil Capacity 144-314,MCC Schools,Rogiet Primary School,Supplies & Services,Services,Professional And Specialist Fees,,01/03/2024,08/03/2024,30,,Shield Security
Children Services,Children Services Other,Social Care and Health,External Placements - CLA,Third Party Payments,Third Party,Fostering/Adoption Allowances,,31/01/2024,11/03/2024,4207.01,,TLC Wales Fostering
"Commercial, Corporate & landlord Services",Property Services & Facilities Management,Resources,Gwent Police Collaboration,Premises,"Repairs, Alterations & Maintenance of Buildings",Building Improvements / Maintenance,,08/03/2024,13/03/2024,46,,A.J Quinn Building Contractors Ltd
"Commercial, Corporate & landlord Services",Property Services & Facilities Management,Resources,Gwent Police Collaboration,Premises,"Repairs, Alterations & Maintenance of Buildings",Building Improvements / Maintenance,,29/02/2024,13/03/2024,81.88,,A.J Quinn Building Contractors Ltd
Standards,Inclusions,Children & Young People,Education Welfare Support,Supplies & Services,Communications and Computing,Postages,,19/02/2024,13/03/2024,27.8,,GoJute International
Adult Services,Community Care Team,Social Care and Health,Monmouth Adult Team,Third Party Payments,Third Party,Personal Care.,,05/03/2024,13/03/2024,2680,,Abicare Services Ltd
"Leisure, Youth & Outdoor Adventure",Leisure Services,MonLife Directorate,Monmouth Leisure Centre,Supplies & Services,Catering,Catering,,29/02/2024,20/03/2024,58.46,,Castell Howell Foods Ltd
"Leisure, Youth & Outdoor Adventure",Leisure Services,MonLife Directorate,Monmouth Leisure Centre,Supplies & Services,Catering,Catering,,29/02/2024,20/03/2024,-18.22,,Castell Howell Foods Ltd
"Leisure, Youth & Outdoor Adventure",Leisure Services,MonLife Directorate,Monmouth Leisure Centre,Supplies & Services,Catering,Catering,,29/02/2024,20/03/2024,18.22,,Castell Howell Foods Ltd
"Commercial, Corporate & landlord Services",Property Services & Facilities Management,Resources,Programmed Maintenance,Premises,"Repairs, Alterations & Maintenance of Buildings",Building Improvements / Maintenance,,23/03/2024,26/03/2024,82.86,,Lorne Stewart  Plc
Adult Services,Direct Care Residential,Social Care and Health,Mardy Park,Supplies & Services,"Equipment, Furniture and Materials",Provisions.,,15/03/2024,26/03/2024,241.19,,Castell Howell Foods Ltd
Adult Services,Direct Care Residential,Social Care and Health,Mardy Park,Supplies & Services,"Equipment, Furniture and Materials",Provisions.,,15/03/2024,26/03/2024,-9.98,,Castell Howell Foods Ltd
Adult Services,Community Care Team,Social Care and Health,Abergavenny Adult Team,Third Party Payments,Third Party,Personal Care.,,11/03/2024,26/03/2024,985.8,,My Care My Home Ltd
"Enterprise, Housing & Community Animation",General Fund Housing,Communities & Place,Melin PSL (Private Sector Leasing),Premises,"Repairs, Alterations & Maintenance of Buildings",Building Improvements / Maintenance,,23/02/2024,08/03/2024,421.57,,Monmouthshire Housing Association Ltd
Adult Services,Community Care Team,Social Care and Health,Abergavenny Adult Team,Third Party Payments,Third Party,Personal Care.,,27/02/2024,13/03/2024,342.18,,Allied Healthcare Services Limited
Adult Services,Community Care Team,Social Care and Health,Abergavenny Adult Team,Third Party Payments,Third Party,Personal Care.,,27/02/2024,13/03/2024,365.38,,Allied Healthcare Services Limited
Adult Services,Community Care Team,Social Care and Health,Abergavenny Adult Team,Third Party Payments,Third Party,Personal Care.,,29/02/2024,13/03/2024,813.72,,Q Care Ltd
Adult Services,Community Care Team,Social Care and Health,Abergavenny Adult Team,Third Party Payments,Third Party,Personal Care.,,27/02/2024,13/03/2024,582.75,,Allied Healthcare Services Limited
Adult Services,Community Care Team,Social Care and Health,Abergavenny Adult Team,Third Party Payments,Third Party,Personal Care.,,29/02/2024,13/03/2024,388.36,,Q Care Ltd
Adult Services,Community Care Team,Social Care and Health,Monmouth Adult Team,Third Party Payments,Third Party,Personal Care.,,05/03/2024,13/03/2024,2680,,Abicare Services Ltd
"Commercial, Corporate & landlord Services",Property Services & Facilities Management,Resources,Programmed Maintenance,Premises,"Repairs, Alterations & Maintenance of Buildings",Building Improvements / Maintenance,,23/03/2024,28/03/2024,324.5,,Lorne Stewart  Plc
Adult Services,Community Care Team,Social Care and Health,Monmouth Adult Team,Third Party Payments,Third Party,Personal Care.,,26/03/2024,28/03/2024,2820,,REDACTED PERSONAL DATA
Adult Services,Community Care Team,Social Care and Health,Monmouth Adult Team,Third Party Payments,Third Party,Personal Care.,,26/03/2024,28/03/2024,2171.72,,REDACTED PERSONAL DATA
Adult Services,Community Care Team,Social Care and Health,Monmouth Adult Team,Third Party Payments,Third Party,Personal Care.,,26/03/2024,28/03/2024,1430.28,,REDACTED PERSONAL DATA
Adult Services,Community Care Team,Social Care and Health,Monmouth Adult Team,Third Party Payments,Third Party,Personal Care.,,26/03/2024,28/03/2024,756.36,,REDACTED PERSONAL DATA
Adult Services,Community Care Team,Social Care and Health,Monmouth Adult Team,Third Party Payments,Third Party,Personal Care.,,26/03/2024,28/03/2024,4399.92,,REDACTED PERSONAL DATA
Adult Services,Community Care Team,Social Care and Health,Abergavenny Adult Team,Third Party Payments,Third Party,Personal Care.,,26/03/2024,28/03/2024,2820,,REDACTED PERSONAL DATA
Adult Services,Community Care Team,Social Care and Health,Abergavenny Adult Team,Third Party Payments,Third Party,Personal Care.,,26/03/2024,28/03/2024,517.2,,REDACTED PERSONAL DATA
Schools Total,School Group 2 � Pupil Capacity 144-314,MCC Schools,Pembroke Primary School,Premises,"Repairs, Alterations & Maintenance of Buildings",Building Improvements / Maintenance,,23/03/2024,28/03/2024,458.95,,Lorne Stewart  Plc
Schools Total,School Group 2 � Pupil Capacity 144-314,MCC Schools,Our Lady & St Michael's (OLSM) RC Primary School (VA),Supplies & Services,Catering,Catering,,02/03/2024,20/03/2024,-19.44,,Castell Howell Foods Ltd
Adult Services,Community Care Team,Social Care and Health,Monmouth Adult Team,Third Party Payments,Third Party,Personal Care.,,26/03/2024,28/03/2024,336.4,,REDACTED PERSONAL DATA
Adult Services,Community Care Team,Social Care and Health,Abergavenny Adult Team,Third Party Payments,Third Party,Personal Care.,,26/03/2024,28/03/2024,2820,,REDACTED PERSONAL DATA
Adult Services,Community Care Team,Social Care and Health,Abergavenny Adult Team,Third Party Payments,Third Party,Personal Care.,,26/03/2024,28/03/2024,501.04,,REDACTED PERSONAL DATA
Appropriations,Appropriations,Appropriations,Attributable Costs - Fixed Asset Disposal,Premises,"Repairs, Alterations & Maintenance of Buildings",Building Improvements / Maintenance,,15/03/2023,22/03/2024,325,,REDACTED PERSONAL DATA
Schools Total,School Group 2 � Pupil Capacity 144-314,MCC Schools,Dewstow Primary School,Premises,"Repairs, Alterations & Maintenance of Buildings",Building Improvements / Maintenance,,26/02/2024,11/03/2024,9019.23,,SpaceKraft Ltd
Neighbourhood Services,Highways,Communities & Place,Stores,Current Assets,Inventories,Stock Received Suspense,,31/01/2024,21/03/2024,63.4,,Industrial Rugbi Supplies
Neighbourhood Services,Highways,Communities & Place,Stores,Current Assets,Inventories,Stock Received Suspense,,30/01/2024,21/03/2024,6148.36,,Evolve Corporate Ltd T/A PK Safety
Schools Total,Schools,MCC Schools,Pupil Referral Unit,Employees,Indirect Employee Expenses,Health & Safety,,14/03/2024,22/03/2024,3.95,,Viking Direct Ltd
Schools Total,Schools,MCC Schools,Pupil Referral Unit,Employees,Indirect Employee Expenses,Health & Safety,,14/03/2024,22/03/2024,29.84,,Viking Direct Ltd
"Leisure, Youth & Outdoor Adventure",Leisure Services,MonLife Directorate,Monmouth Leisure Centre,Premises,"Repairs, Alterations & Maintenance of Buildings",Security Of Premises.,,19/03/2024,22/03/2024,300,,M J Events Support Ltd
"Facilities, Fleet & Decarbonisation",Transport Department,Communities & Place,Transport,Premises,Energy Costs,Electricity.,,29/02/2024,20/03/2024,693.94,,EDF Energy
Neighbourhood Services,Highways,Communities & Place,Stores,Current Assets,Inventories,Stock Received Suspense,,31/01/2024,21/03/2024,4145.28,,Landscape Supply Company
Neighbourhood Services,Highways,Communities & Place,Stores,Current Assets,Inventories,Stock Received Suspense,,29/01/2024,21/03/2024,2100,,Forest Products Ltd
"Commercial, Corporate & landlord Services",Property Services & Facilities Management,Resources,Programmed Maintenance,Premises,"Repairs, Alterations & Maintenance of Buildings",Premises Repairs And Maintenance,,25/01/2024,20/03/2024,99.34,,Fire Safety Direct
"Commercial, Corporate & landlord Services",Property Services & Facilities Management,Resources,Magor Accommodation,Premises,"Repairs, Alterations & Maintenance of Buildings",Premises Repairs And Maintenance,,26/01/2024,20/03/2024,188.98,,Fire Safety Direct
Capital Division,Capital Dept,Capital,Capital Programme,Supplies & Services,"Equipment, Furniture and Materials",Materials & Consumables.,,13/02/2024,13/03/2024,361.91,,Nisbets
Schools Total,School Group 2 � Pupil Capacity 144-314,MCC Schools,Archbishop Rowan Williams CiW Primary School (VA),Premises,Ground Maintenance Costs,Grounds Maintenance - Direct.,,05/03/2024,13/03/2024,300,,Morris's Grounds Maintenance Ltd
"Enterprise, Housing & Community Animation",General Fund Housing,Communities & Place,Emergency Accommodation Hostel,Premises,"Repairs, Alterations & Maintenance of Buildings",Security Of Premises.,,12/03/2024,18/03/2024,2909.76,,M J Events Support Ltd
"Enterprise, Housing & Community Animation",General Fund Housing,Communities & Place,Homelessness,Premises,"Repairs, Alterations & Maintenance of Buildings",Security Of Premises.,,12/03/2024,18/03/2024,5819.52,,M J Events Support Ltd
"Enterprise, Housing & Community Animation",General Fund Housing,Communities & Place,Homelessness,Premises,"Repairs, Alterations & Maintenance of Buildings",Security Of Premises.,,12/03/2024,18/03/2024,4000.92,,M J Events Support Ltd
#N/A,#N/A,#N/A,#N/A,Supplies & Services,Services,Training Charges,,05/03/2024,08/03/2024,432.9,,Handpowered
Neighbourhood Services,Waste and Street Services,Communities & Place,Refuse & Cleansing Operations,Supplies & Services,Services,Training Charges,,05/03/2024,08/03/2024,720,,Heads Of The Valley Training Con
Capital Division,Capital Dept,Capital,Capital Programme,Supplies & Services,"Equipment, Furniture and Materials",Materials & Consumables.,,04/03/2024,08/03/2024,14256,,Wild Flower Turf Ltd
Capital Division,Capital Dept,Capital,Capital Programme,Supplies & Services,"Equipment, Furniture and Materials",Materials & Consumables.,,04/03/2024,08/03/2024,594,,Wild Flower Turf Ltd
Capital Division,Capital Dept,Capital,Capital Programme,Supplies & Services,"Equipment, Furniture and Materials",Materials & Consumables.,,04/03/2024,08/03/2024,628,,Wild Flower Turf Ltd
Schools Total,SCHGRP3 � School Group 3 � Pupil Capacity 315-500,MCC Schools,Overmonnow Primary School,Premises,Ground Maintenance Costs,Grounds Maintenance - Direct.,,05/03/2024,08/03/2024,300,,Morris's Grounds Maintenance Ltd
Adult Services,Direct Care,Social Care and Health,Care at Home,Supplies & Services,Services,Training Charges,,19/02/2024,11/03/2024,120,,REDACTED PERSONAL DATA
"Commercial, Corporate & landlord Services",Property Services & Facilities Management,Resources,Programmed Maintenance,Premises,"Repairs, Alterations & Maintenance of Buildings",Premises Repairs And Maintenance,,23/03/2024,28/03/2024,588.06,,Lorne Stewart  Plc
"Commercial, Corporate & landlord Services",Property Services & Facilities Management,Resources,Programmed Maintenance,Premises,"Repairs, Alterations & Maintenance of Buildings",Premises Repairs And Maintenance,,23/03/2024,28/03/2024,588.06,,Lorne Stewart  Plc
"Commercial, Corporate & landlord Services",Property Services & Facilities Management,Resources,Programmed Maintenance,Premises,"Repairs, Alterations & Maintenance of Buildings",Premises Repairs And Maintenance,,23/03/2024,28/03/2024,588.06,,Lorne Stewart  Plc
Adult Services,Direct Care Residential,Social Care and Health,Mardy Park,Supplies & Services,"Clothes, Uniform and Laundry",Clothing And Uniforms,,20/02/2024,06/03/2024,18.99,,Nisbets
"Commercial, Corporate & landlord Services",Property Services & Facilities Management,Resources,Programmed Maintenance,Premises,"Repairs, Alterations & Maintenance of Buildings",Premises Repairs And Maintenance,,31/01/2024,14/03/2024,600,,Enviroteq
"Commercial, Corporate & landlord Services",Property Services & Facilities Management,Resources,Programmed Maintenance,Premises,"Repairs, Alterations & Maintenance of Buildings",Premises Repairs And Maintenance,,31/01/2024,14/03/2024,180,,Enviroteq
Neighbourhood Services,Highways,Communities & Place,Overhead - SWTRA / External,Supplies & Services,Services,Training Charges,,12/03/2024,14/03/2024,80,,Heads Of The Valley Training Con
Neighbourhood Services,Highways,Communities & Place,Overhead - SWTRA / External,Supplies & Services,Services,Training Charges,,12/03/2024,14/03/2024,80,,Heads Of The Valley Training Con
Neighbourhood Services,Waste and Street Services,Communities & Place,Refuse & Cleansing Operations,Supplies & Services,Services,Training Charges,,12/03/2024,14/03/2024,240,,Heads Of The Valley Training Con
Neighbourhood Services,Waste and Street Services,Communities & Place,Refuse & Cleansing Operations,Supplies & Services,Services,Training Charges,,12/03/2024,14/03/2024,80,,Heads Of The Valley Training Con
Neighbourhood Services,Highways,Communities & Place,Overhead - Mon Highways,Supplies & Services,Services,Training Charges,,12/03/2024,14/03/2024,80,,Heads Of The Valley Training Con
"Commercial, Corporate & landlord Services",Property Services & Facilities Management,Resources,Reactive Maintenance,Premises,"Repairs, Alterations & Maintenance of Buildings",Building Improvements / Maintenance,,08/03/2024,13/03/2024,75.8,,A.J Quinn Building Contractors Ltd
"Commercial, Corporate & landlord Services",Property Services & Facilities Management,Resources,Reactive Maintenance,Premises,"Repairs, Alterations & Maintenance of Buildings",Building Improvements / Maintenance,,12/03/2024,26/03/2024,289.98,,A.J Quinn Building Contractors Ltd
Schools Total,School Group 7 � Pupil Capacity 501-1800,MCC Schools,King Henry 3-19 School,Employees,Indirect Employee Expenses,Replacement,,13/03/2024,18/03/2024,556.4,,Supply Desk Ltd
Schools Total,School Group 7 � Pupil Capacity 501-1800,MCC Schools,King Henry 3-19 School,Employees,Indirect Employee Expenses,Replacement,,13/03/2024,18/03/2024,223,,Academics
Schools Total,School Group 7 � Pupil Capacity 501-1800,MCC Schools,King Henry 3-19 School,Employees,Indirect Employee Expenses,Replacement,,13/03/2024,18/03/2024,223,,Academics
Schools Total,School Group 7 � Pupil Capacity 501-1800,MCC Schools,King Henry 3-19 School,Employees,Indirect Employee Expenses,Replacement,,13/03/2024,18/03/2024,223,,Academics
"Commercial, Corporate & landlord Services",Property Services & Facilities Management,Resources,Central Accommodation,Premises,"Repairs, Alterations & Maintenance of Buildings",Building Improvements / Maintenance,,06/03/2024,18/03/2024,1831.67,,G4S Secure Solutions (UK) Ltd
Schools Total,School Group 7 � Pupil Capacity 501-1800,MCC Schools,King Henry 3-19 School,Employees,Indirect Employee Expenses,Replacement,,06/03/2024,18/03/2024,278.2,,Supply Desk Ltd
Schools Total,School Group 7 � Pupil Capacity 501-1800,MCC Schools,King Henry 3-19 School,Employees,Indirect Employee Expenses,Replacement,,28/02/2024,18/03/2024,516.04,,Teaching Personnel
Schools Total,School Group 7 � Pupil Capacity 501-1800,MCC Schools,King Henry 3-19 School,Employees,Indirect Employee Expenses,Replacement,,28/02/2024,18/03/2024,645.05,,Teaching Personnel
Schools Total,School Group 7 � Pupil Capacity 501-1800,MCC Schools,King Henry 3-19 School,Employees,Indirect Employee Expenses,Replacement,,06/03/2024,18/03/2024,45.4,,Axcis Education Recruitment
Children Services,Children Services Teams,Social Care and Health,Family Support and Protection Team � North,Employees,Direct Employee Expenses,Agency Staff,,12/03/2024,18/03/2024,1868.04,,Leaders In Care
Schools Total,School Group 7 � Pupil Capacity 501-1800,MCC Schools,King Henry 3-19 School,Employees,Indirect Employee Expenses,Replacement,,24/11/2023,18/03/2024,161.76,,Education Staffing Partnership
Schools Total,School Group 7 � Pupil Capacity 501-1800,MCC Schools,King Henry 3-19 School,Employees,Indirect Employee Expenses,Replacement,,01/03/2024,18/03/2024,655.62,,Hoop
Schools Total,School Group 7 � Pupil Capacity 501-1800,MCC Schools,King Henry 3-19 School,Employees,Indirect Employee Expenses,Replacement,,06/03/2024,18/03/2024,436.92,,Axcis Education Recruitment
"Commercial, Corporate & landlord Services",Property Services & Facilities Management,Resources,Magor Accommodation,Premises,"Repairs, Alterations & Maintenance of Buildings",Building Improvements / Maintenance,,01/02/2024,14/03/2024,30,,Shield Security
Finance & Business Devlopment,Borough Theatre,MonLife Directorate,Borough Theatre General,Supplies & Services,"Equipment, Furniture and Materials",Bar,,23/02/2024,14/03/2024,129.13,,Tanners Wines Ltd
Finance & Business Devlopment,Borough Theatre,MonLife Directorate,Borough Theatre General,Supplies & Services,"Equipment, Furniture and Materials",Bar,,16/02/2024,14/03/2024,251.8,,Alliance Disposables Ltd
Schools Total,School Group 7 � Pupil Capacity 501-1800,MCC Schools,King Henry 3-19 School,Employees,Indirect Employee Expenses,Replacement,,28/02/2024,18/03/2024,118,,Axcis Education Recruitment
Schools Total,School Group 7 � Pupil Capacity 501-1800,MCC Schools,King Henry 3-19 School,Employees,Indirect Employee Expenses,Replacement,,06/03/2024,18/03/2024,354,,Axcis Education Recruitment
Schools Total,School Group 7 � Pupil Capacity 501-1800,MCC Schools,Caldicot School,Supplies & Services,"Printing, Stationery and General Office Expenses",Photocopying.,,19/01/2024,08/03/2024,976.45,,Springfield Business Papers
Schools Total,School Group 7 � Pupil Capacity 501-1800,MCC Schools,Caldicot School,Supplies & Services,Expenses,Exam Fees (Schools),,29/02/2024,08/03/2024,60,,NCFE
Schools Total,School Group 7 � Pupil Capacity 501-1800,MCC Schools,Caldicot School,Supplies & Services,"Printing, Stationery and General Office Expenses",Photocopying.,,06/03/2024,08/03/2024,999.05,,Springfield Business Papers
SCH Support,Grant Schemes SHS,Social Care and Health,Training,Supplies & Services,Expenses,Non Employee Training Courses,,13/02/2024,11/03/2024,927.21,,Blaenau Gwent County Borough Council
Schools Total,School Group 7 � Pupil Capacity 501-1800,MCC Schools,King Henry 3-19 School,Employees,Indirect Employee Expenses,Replacement,,28/02/2024,18/03/2024,129.01,,Teaching Personnel
Control Division,Control Dept,Control,Creditors Suspense Account,Current Liabilities,Short Term Creditors,Creditor Suspense,,27/03/2024,28/03/2024,-1901.99,,Back Office Support Services Ltd (Education Supply Pool)
"Commercial, Corporate & landlord Services",Property Services & Facilities Management,Resources,Reactive Maintenance,Premises,"Repairs, Alterations & Maintenance of Buildings",Building Improvements / Maintenance,,05/03/2024,13/03/2024,7230,,A.J Quinn Building Contractors Ltd
"Commercial, Corporate & landlord Services",Property Services & Facilities Management,Resources,Reactive Maintenance,Premises,"Repairs, Alterations & Maintenance of Buildings",Building Improvements / Maintenance,,08/03/2024,13/03/2024,34.5,,A.J Quinn Building Contractors Ltd
"Commercial, Corporate & landlord Services",Property Services & Facilities Management,Resources,Reactive Maintenance,Premises,"Repairs, Alterations & Maintenance of Buildings",Building Improvements / Maintenance,,08/03/2024,13/03/2024,194.5,,A.J Quinn Building Contractors Ltd
"Commercial, Corporate & landlord Services",Property Services & Facilities Management,Resources,External Clients,Premises,"Repairs, Alterations & Maintenance of Buildings",Building Improvements / Maintenance,,23/03/2024,28/03/2024,183.81,,Lorne Stewart  Plc
"Commercial, Corporate & landlord Services",Property Services & Facilities Management,Resources,External Clients,Premises,"Repairs, Alterations & Maintenance of Buildings",Building Improvements / Maintenance,,23/03/2024,28/03/2024,142.52,,Lorne Stewart  Plc
Children Services,Children Services Teams,Social Care and Health,SCH Safeguarding Unit,Employees,Direct Employee Expenses,Agency Staff,,31/01/2024,14/03/2024,2205,,Cheka Safeguarding Services Limited
Finance & Business Devlopment,Borough Theatre,MonLife Directorate,Borough Theatre General,Supplies & Services,"Equipment, Furniture and Materials",Bar,,16/02/2024,14/03/2024,411.88,,Alliance Disposables Ltd
Schools Total,School Group 2 � Pupil Capacity 144-314,MCC Schools,Our Lady & St Michael's (OLSM) RC Primary School (VA),Employees,Direct Employee Expenses,Agency Staff,,26/02/2024,18/03/2024,566.75,,Apollo Teaching Services LTD
Schools Total,School Group 2 � Pupil Capacity 144-314,MCC Schools,Our Lady & St Michael's (OLSM) RC Primary School (VA),Employees,Direct Employee Expenses,Agency Staff,,04/03/2024,18/03/2024,566.75,,Apollo Teaching Services LTD
Schools Total,School Group 2 � Pupil Capacity 144-314,MCC Schools,Our Lady & St Michael's (OLSM) RC Primary School (VA),Employees,Direct Employee Expenses,Agency Staff,,11/03/2024,18/03/2024,566.75,,Apollo Teaching Services LTD
Schools Total,School Group 2 � Pupil Capacity 144-314,MCC Schools,Our Lady & St Michael's (OLSM) RC Primary School (VA),Employees,Direct Employee Expenses,Agency Staff,,14/02/2024,18/03/2024,1975.68,,Teaching Personnel
Schools Total,SCHGRP3 � School Group 3 � Pupil Capacity 315-500,MCC Schools,The Dell Primary School,Employees,Direct Employee Expenses,Agency Staff,,06/03/2024,18/03/2024,642.65,,Suppleo Recruitment Ltd
Schools Total,Schools,MCC Schools,Pupil Referral Unit,Employees,Direct Employee Expenses,Agency Staff,,06/03/2024,18/03/2024,849.96,,Back Office Support Services Ltd (Education Supply Pool)
Schools Total,Schools,MCC Schools,Pupil Referral Unit,Employees,Direct Employee Expenses,Agency Staff,,06/03/2024,18/03/2024,1045.59,,Back Office Support Services Ltd (Education Supply Pool)
Schools Total,Schools,MCC Schools,Pupil Referral Unit,Employees,Direct Employee Expenses,Agency Staff,,06/03/2024,18/03/2024,1090.19,,Back Office Support Services Ltd (Education Supply Pool)
Schools Total,School Group 2 � Pupil Capacity 144-314,MCC Schools,Ysgol Gymraeg Y Fenni,Employees,Direct Employee Expenses,Agency Staff,,13/03/2024,18/03/2024,1094.7,,Teaching Personnel
Schools Total,SCHGRP3 � School Group 3 � Pupil Capacity 315-500,MCC Schools,Overmonnow Primary School,Employees,Direct Employee Expenses,Agency Staff,,08/03/2024,18/03/2024,98.12,,Prospero Teaching
Schools Total,School Group 2 � Pupil Capacity 144-314,MCC Schools,Our Lady & St Michael's (OLSM) RC Primary School (VA),Employees,Direct Employee Expenses,Agency Staff,,28/02/2024,18/03/2024,1728.72,,Teaching Personnel
Children Services,Children Services Teams,Social Care and Health,Family Support and Protection Team - South,Supplies & Services,Services,Professional And Specialist Fees,,08/03/2024,14/03/2024,174.25,,DNA Legal
Finance & Business Devlopment,Borough Theatre,MonLife Directorate,SPF - Creative Futures,Supplies & Services,Services,Sub-Contractors Fees,,23/02/2024,14/03/2024,687.5,,REDACTED PERSONAL DATA
Finance & Business Devlopment,Borough Theatre,MonLife Directorate,SPF - Creative Futures,Supplies & Services,Services,Sub-Contractors Fees,,19/02/2024,14/03/2024,1000,,REDACTED PERSONAL DATA
"Policy, Scrutiny & Customer Service",Policy And Partnerships,Chief Executive's Unit,Equalities and Welsh Language,Supplies & Services,Services,Professional And Specialist Fees,,04/03/2024,08/03/2024,427.62,,REDACTED PERSONAL DATA
Children Services,Children Services Other,Social Care and Health,Face to Face Counselling,Supplies & Services,Services,Professional And Specialist Fees,,05/03/2024,08/03/2024,200,,REDACTED PERSONAL DATA
Schools Total,SCHGRP3 � School Group 3 � Pupil Capacity 315-500,MCC Schools,Overmonnow Primary School,Employees,Direct Employee Expenses,Agency Staff,,06/03/2024,08/03/2024,1918.9,,Teaching Personnel
Schools Total,SCHGRP3 � School Group 3 � Pupil Capacity 315-500,MCC Schools,Overmonnow Primary School,Employees,Direct Employee Expenses,Agency Staff,,05/03/2024,08/03/2024,1407.07,,TeacherActive
Schools Total,Schools,MCC Schools,Pupil Referral Unit,Employees,Direct Employee Expenses,Agency Staff,,28/02/2024,11/03/2024,1044.6,,Teaching Personnel
Schools Total,SCHGRP3 � School Group 3 � Pupil Capacity 315-500,MCC Schools,Overmonnow Primary School,Employees,Direct Employee Expenses,Agency Staff,,13/03/2024,18/03/2024,1553.15,,Teaching Personnel
Schools Total,SCHGRP3 � School Group 3 � Pupil Capacity 315-500,MCC Schools,Overmonnow Primary School,Employees,Direct Employee Expenses,Agency Staff,,12/03/2024,18/03/2024,1281.21,,TeacherActive
Schools Total,School Group 2 � Pupil Capacity 144-314,MCC Schools,Dewstow Primary School,Employees,Direct Employee Expenses,Agency Staff,,27/12/2023,18/03/2024,646.65,,Suppleo Recruitment Ltd
Schools Total,Schools,MCC Schools,Pupil Referral Unit,Employees,Direct Employee Expenses,Agency Staff,,06/03/2024,18/03/2024,649.5,,Teaching Personnel
Schools Total,Schools,MCC Schools,Pupil Referral Unit,Employees,Direct Employee Expenses,Agency Staff,,06/03/2024,18/03/2024,1063.94,,Back Office Support Services Ltd (Education Supply Pool)
Children Services,Children Services Other,Social Care and Health,Counsel Costs,Supplies & Services,Services,Professional And Specialist Fees,,29/02/2024,13/03/2024,39.32,,Marten Walsh Cherer Ltd
Schools Total,School Group 2 � Pupil Capacity 144-314,MCC Schools,Osbaston CiW Primary School (VC),Employees,Direct Employee Expenses,Agency Staff,,21/11/2023,13/03/2024,226.14,,TeacherActive
Schools Total,School Group 2 � Pupil Capacity 144-314,MCC Schools,Goytre Fawr Primary School,Employees,Direct Employee Expenses,Agency Staff,,11/03/2024,13/03/2024,113.93,,Apollo Teaching Services LTD
Schools Total,School Group 2 � Pupil Capacity 144-314,MCC Schools,Thornwell Primary School,Employees,Direct Employee Expenses,Agency Staff,,28/02/2024,13/03/2024,6506.72,,Teaching 4 Wales Ltd
"Policy, Scrutiny & Customer Service",Policy And Partnerships,Chief Executive's Unit,Equalities and Welsh Language,Supplies & Services,Services,Professional And Specialist Fees,,29/02/2024,14/03/2024,2917.08,,Cwmni2
"Policy, Scrutiny & Customer Service",Policy And Partnerships,Chief Executive's Unit,Equalities and Welsh Language,Supplies & Services,Services,Professional And Specialist Fees,,05/03/2024,14/03/2024,1956.3,,Gair
Finance & Business Devlopment,Borough Theatre,MonLife Directorate,SPF - Creative Futures,Supplies & Services,Services,Sub-Contractors Fees,,24/02/2024,18/03/2024,600,,REDACTED PERSONAL DATA
Children Services,Children Services Teams,Social Care and Health,MyST,Supplies & Services,Services,Professional And Specialist Fees,,15/03/2024,20/03/2024,2614.88,,Torfaen County Borough Council
Schools Total,School Group 2 � Pupil Capacity 144-314,MCC Schools,St Mary�s RC Primary School (VA),Employees,Direct Employee Expenses,Agency Staff,,28/02/2024,20/03/2024,300,,Forest Sports Education
Schools Total,School Group 1 � Pupil Capacity 1-143,MCC Schools,Llanvihangel Crucorney Primary School,Employees,Direct Employee Expenses,Agency Staff,,25/02/2024,11/03/2024,130.76,,New Directions Education Ltd
"Placemaking, Highways & Flooding",Highways Dev & Car Parks,Communities & Place,Traffic & Road Safety,Supplies & Services,"Equipment, Furniture and Materials",Advertising,,01/03/2024,11/03/2024,420,,Tindle Newspapers Wales & The Borders Ltd
"Placemaking, Highways & Flooding",Highways Dev & Car Parks,Communities & Place,Traffic & Road Safety,Supplies & Services,"Equipment, Furniture and Materials",Advertising,,01/03/2024,11/03/2024,420,,Tindle Newspapers Wales & The Borders Ltd
"Placemaking, Highways & Flooding",Highways Dev & Car Parks,Communities & Place,Traffic & Road Safety,Supplies & Services,"Equipment, Furniture and Materials",Advertising,,01/03/2024,11/03/2024,420,,Tindle Newspapers Wales & The Borders Ltd
Schools Total,School Group 7 � Pupil Capacity 501-1800,MCC Schools,Monmouth Comprehensive,Premises,Cleaning and Domestic Supplies,Toilet Requisites,,13/03/2024,19/03/2024,459.8,,H D Adcock (Nelson) Ltd
Schools Total,School Group 2 � Pupil Capacity 144-314,MCC Schools,Thornwell Primary School,Premises,Cleaning and Domestic Supplies,Toilet Requisites,,11/03/2024,19/03/2024,-8.75,,Amazon Payments UK Limited
"Enterprise, Housing & Community Animation",General Fund Housing,Communities & Place,Strategic Services,Third Party Payments,Third Party,General Contracts,,06/12/2023,19/03/2024,55,,Magor and Undy Community Hub
Schools Total,School Group 7 � Pupil Capacity 501-1800,MCC Schools,Monmouth Comprehensive,Premises,Cleaning and Domestic Supplies,Refuse Collection,,15/03/2024,25/03/2024,490.14,,Jaydee Living Ltd
"Placemaking, Highways & Flooding",Highways Dev & Car Parks,Communities & Place,Traffic & Road Safety,Third Party Payments,Third Party,General Contracts,,11/03/2024,20/03/2024,1024.74,,Standard Signs
"Enterprise, Housing & Community Animation",General Fund Housing,Communities & Place,Homelessness,Supplies & Services,Services,Homelessness Bed & Breakfast Accomodation,,29/02/2024,11/03/2024,291.69,,Raglan Lodge
"Enterprise, Housing & Community Animation",Business Growth & Enterprise,Communities & Place,Sustainable Food Development,Premises,Rents,Rents/Hire Of Premises.,,04/03/2024,14/03/2024,300,,The Retreat Llanover Ltd
Capital Division,Capital Dept,Capital,Capital Programme,Third Party Payments,Third Party,General Contracts,,18/03/2024,22/03/2024,40918.23,,Gloucester County Council
"Enterprise, Housing & Community Animation",Business Growth & Enterprise,Communities & Place,Multiply SPF,Premises,Rents,Rents/Hire Of Premises.,,22/02/2024,14/03/2024,31,,Kingdom Come Wales LTD
"Enterprise, Housing & Community Animation",Business Growth & Enterprise,Communities & Place,Multiply SPF,Premises,Rents,Rents/Hire Of Premises.,,29/02/2024,14/03/2024,36,,Magor and Undy Community Hub
"Enterprise, Housing & Community Animation",General Fund Housing,Communities & Place,Homelessness,Supplies & Services,Services,Homelessness Bed & Breakfast Accomodation,,29/02/2024,11/03/2024,291.69,,Raglan Lodge
"Enterprise, Housing & Community Animation",General Fund Housing,Communities & Place,Homelessness,Supplies & Services,Services,Homelessness Bed & Breakfast Accomodation,,29/02/2024,11/03/2024,291.69,,Raglan Lodge
Countryside & Culture,Tourism,MonLife Directorate,SPF - Destination for All & Regional Marketing,Premises,Rents,Rents/Hire Of Premises.,,02/03/2024,11/03/2024,120,,St Marys Priory Fund
"Enterprise, Housing & Community Animation",General Fund Housing,Communities & Place,Homelessness,Supplies & Services,Services,Homelessness Bed & Breakfast Accomodation,,01/03/2024,11/03/2024,13700,,The Huntsman Hotel
"Enterprise, Housing & Community Animation",General Fund Housing,Communities & Place,Homelessness,Supplies & Services,Services,Homelessness Bed & Breakfast Accomodation,,04/03/2024,13/03/2024,1120,,The Mayhill Hotel
"Enterprise, Housing & Community Animation",General Fund Housing,Communities & Place,Homelessness,Supplies & Services,Services,Homelessness Bed & Breakfast Accomodation,,04/03/2024,13/03/2024,-224,,The Mayhill Hotel
"Enterprise, Housing & Community Animation",General Fund Housing,Communities & Place,Homelessness,Supplies & Services,Services,Homelessness Bed & Breakfast Accomodation,,04/03/2024,13/03/2024,224,,The Mayhill Hotel
Capital Division,Capital Dept,Capital,Capital Programme,Third Party Payments,Third Party,General Contracts,,13/03/2024,22/03/2024,15532.2,,WSP UK Limited
"Enterprise, Housing & Community Animation",General Fund Housing,Communities & Place,Homelessness,Supplies & Services,Services,Homelessness Bed & Breakfast Accomodation,,12/03/2024,20/03/2024,291.69,,Raglan Lodge
"Enterprise, Housing & Community Animation",General Fund Housing,Communities & Place,Homelessness,Supplies & Services,Services,Homelessness Bed & Breakfast Accomodation,,12/03/2024,20/03/2024,291.69,,Raglan Lodge
"Enterprise, Housing & Community Animation",General Fund Housing,Communities & Place,Homelessness,Supplies & Services,Services,Homelessness Bed & Breakfast Accomodation,,12/03/2024,20/03/2024,291.69,,Raglan Lodge
Schools Total,School Group 7 � Pupil Capacity 501-1800,MCC Schools,Caldicot School,Premises,Cleaning and Domestic Supplies,Contract Cleaning - Premises (Direct),,29/02/2024,22/03/2024,1021.08,,Churchill Service Solutions
Schools Total,School Group 2 � Pupil Capacity 144-314,MCC Schools,Trellech Primary School,Premises,Cleaning and Domestic Supplies,Toilet Requisites,,19/03/2024,22/03/2024,21.26,,Newhall Janitorial Ltd
Schools Total,School Group 2 � Pupil Capacity 144-314,MCC Schools,Gilwern Primary School,Supplies & Services,Grants and Subscriptions,Subscriptions,,29/02/2024,18/03/2024,36,,The University of Edinburgh
Schools Total,School Group 2 � Pupil Capacity 144-314,MCC Schools,Shirenewton Primary School,Supplies & Services,Grants and Subscriptions,Subscriptions,,28/01/2024,18/03/2024,14,,Shirenewton PCC
Schools Total,School Group 7 � Pupil Capacity 501-1800,MCC Schools,Monmouth Comprehensive,Premises,Cleaning and Domestic Supplies,Refuse Collection,,29/02/2024,14/03/2024,1441.36,,Veolia Environmental Services Ltd
Finance,Finance & Improvement Dept,Resources,Departmental Management Team,Supplies & Services,Grants and Subscriptions,Subscriptions,,29/02/2024,08/03/2024,7235,,CIPFA Business Limited
"Enterprise, Housing & Community Animation",General Fund Housing,Communities & Place,Homelessness,Supplies & Services,Services,Homelessness Bed & Breakfast Accomodation,,29/02/2024,11/03/2024,291.69,,Raglan Lodge
"Enterprise, Housing & Community Animation",General Fund Housing,Communities & Place,Homelessness,Supplies & Services,Services,Homelessness Bed & Breakfast Accomodation,,29/02/2024,11/03/2024,291.69,,Raglan Lodge
Schools Total,SCHGRP3 � School Group 3 � Pupil Capacity 315-500,MCC Schools,Magor CiW Primary School (VA),Supplies & Services,Grants and Subscriptions,Subscriptions,,15/03/2024,22/03/2024,491.67,,Initial Washrooms & Hygiene
"Placemaking, Highways & Flooding",Highways Dev & Car Parks,Communities & Place,Design & Commissioning,Third Party Payments,Third Party,General Contracts,,29/02/2024,14/03/2024,1470,,Edwards Diving Services
"Placemaking, Highways & Flooding",Highways Dev & Car Parks,Communities & Place,Assets & Systems,Supplies & Services,Grants and Subscriptions,Subscriptions,,14/02/2024,20/03/2024,1750,,Torfaen County Borough Council
Schools Total,School Group 7 � Pupil Capacity 501-1800,MCC Schools,Caldicot School,Supplies & Services,"Equipment, Furniture and Materials",Materials & Consumables.,,01/03/2024,11/03/2024,12.49,,Amazon Payments UK Limited
Schools Total,School Group 7 � Pupil Capacity 501-1800,MCC Schools,Caldicot School,Supplies & Services,"Equipment, Furniture and Materials",Materials & Consumables.,,10/03/2024,20/03/2024,5.82,,Amazon Payments UK Limited
Schools Total,School Group 7 � Pupil Capacity 501-1800,MCC Schools,King Henry 3-19 School,Premises,Catering,Catering Equipment,,18/03/2024,22/03/2024,14.45,,REDACTED PERSONAL DATA
#N/A,#N/A,#N/A,#N/A,Current Assets,Short Term Debtors,Output Vat,,07/03/2024,14/03/2024,9.57,,REDACTED PERSONAL DATA
Schools Total,School Group 7 � Pupil Capacity 501-1800,MCC Schools,King Henry 3-19 School,Premises,Catering,Catering Equipment,,26/02/2024,08/03/2024,23.25,,REDACTED PERSONAL DATA
Schools Total,School Group 7 � Pupil Capacity 501-1800,MCC Schools,King Henry 3-19 School,Premises,Catering,Catering Equipment,,04/03/2024,08/03/2024,14.8,,REDACTED PERSONAL DATA
Schools Total,School Group 7 � Pupil Capacity 501-1800,MCC Schools,Caldicot School,Supplies & Services,"Equipment, Furniture and Materials",Materials & Consumables.,,26/02/2024,08/03/2024,10.99,,Amazon Payments UK Limited
Schools Total,School Group 7 � Pupil Capacity 501-1800,MCC Schools,Caldicot School,Supplies & Services,"Equipment, Furniture and Materials",Materials & Consumables.,,25/02/2024,08/03/2024,39.1,,Amazon Payments UK Limited
Adult Services,Direct Care Residential,Social Care and Health,Mardy Park,Premises,Cleaning and Domestic Supplies,Toilet Requisites,,02/12/2023,06/03/2024,19.11,,Phs Group
"Facilities, Fleet & Decarbonisation",Catering Services,Communities & Place,Schools Catering,Supplies & Services,"Equipment, Furniture and Materials",Materials & Consumables.,,04/03/2024,18/03/2024,54.37,,Castell Howell Foods Ltd
"Facilities, Fleet & Decarbonisation",Catering Services,Communities & Place,Schools Catering,Supplies & Services,"Equipment, Furniture and Materials",Materials & Consumables.,,04/03/2024,18/03/2024,8133.86,,Castell Howell Foods Ltd
Schools Total,School Group 7 � Pupil Capacity 501-1800,MCC Schools,Chepstow School,Transport,Contract Hire and Operating Leases,Vehicle Hire Charge,,05/03/2024,22/03/2024,380,,Varteg Motors Ltd
Schools Total,School Group 7 � Pupil Capacity 501-1800,MCC Schools,Caldicot School,Supplies & Services,"Equipment, Furniture and Materials",Materials & Consumables.,,15/03/2024,20/03/2024,-13.33,,Amazon Payments UK Limited
Schools Total,School Group 2 � Pupil Capacity 144-314,MCC Schools,Cross Ash Primary School,Supplies & Services,"Equipment, Furniture and Materials",Materials & Consumables.,,14/03/2024,21/03/2024,-38.45,,Yorkshire Purchasing
"Placemaking, Highways & Flooding",Highways Dev & Car Parks,Communities & Place,Transport Policy,Income,Customer and Client Receipts,Parking Income,,07/03/2024,14/03/2024,47.85,,REDACTED PERSONAL DATA
"Facilities, Fleet & Decarbonisation",Catering Services,Communities & Place,Schools Catering,Supplies & Services,"Equipment, Furniture and Materials",Materials & Consumables.,,28/02/2024,14/03/2024,32.32,,Castell Howell Foods Ltd
"Facilities, Fleet & Decarbonisation",Catering Services,Communities & Place,Schools Catering,Supplies & Services,"Equipment, Furniture and Materials",Materials & Consumables.,,28/02/2024,14/03/2024,7097.25,,Castell Howell Foods Ltd
Schools Total,School Group 7 � Pupil Capacity 501-1800,MCC Schools,Caldicot School,Supplies & Services,"Equipment, Furniture and Materials",Materials & Consumables.,,10/03/2024,20/03/2024,10.82,,Amazon Payments UK Limited
Schools Total,School Group 7 � Pupil Capacity 501-1800,MCC Schools,Caldicot School,Supplies & Services,"Equipment, Furniture and Materials",Materials & Consumables.,,10/03/2024,20/03/2024,11.62,,Amazon Payments UK Limited
Schools Total,School Group 7 � Pupil Capacity 501-1800,MCC Schools,Caldicot School,Supplies & Services,"Equipment, Furniture and Materials",Materials & Consumables.,,12/03/2024,20/03/2024,3.32,,Amazon Payments UK Limited
"Enterprise, Housing & Community Animation",General Fund Housing,Communities & Place,Melin PSL (Private Sector Leasing),Premises,Cleaning and Domestic Supplies,Premises Pest Control,,15/03/2024,19/03/2024,180,,P&P Pest Control
Schools Total,School Group 7 � Pupil Capacity 501-1800,MCC Schools,Caldicot School,Supplies & Services,"Equipment, Furniture and Materials",Materials & Consumables.,,26/02/2024,13/03/2024,39.09,,Amazon Payments UK Limited
Schools Total,School Group 7 � Pupil Capacity 501-1800,MCC Schools,Caldicot School,Supplies & Services,"Equipment, Furniture and Materials",Materials & Consumables.,,01/02/2024,13/03/2024,9.96,,Amazon Payments UK Limited
Schools Total,School Group 7 � Pupil Capacity 501-1800,MCC Schools,Caldicot School,Supplies & Services,"Equipment, Furniture and Materials",Materials & Consumables.,,11/03/2024,13/03/2024,13.5,,Scientific Laboratory Supplies Ltd
Schools Total,School Group 7 � Pupil Capacity 501-1800,MCC Schools,Caldicot School,Supplies & Services,"Equipment, Furniture and Materials",Materials & Consumables.,,11/03/2024,13/03/2024,37.86,,Scientific Laboratory Supplies Ltd
Schools Total,School Group 7 � Pupil Capacity 501-1800,MCC Schools,Caldicot School,Supplies & Services,"Equipment, Furniture and Materials",Materials & Consumables.,,11/03/2024,13/03/2024,10.64,,Scientific Laboratory Supplies Ltd
Schools Total,School Group 7 � Pupil Capacity 501-1800,MCC Schools,Caldicot School,Supplies & Services,"Equipment, Furniture and Materials",Materials & Consumables.,,15/03/2024,21/03/2024,183.02,,REDACTED DATA
Schools Total,School Group 7 � Pupil Capacity 501-1800,MCC Schools,Caldicot School,Supplies & Services,"Equipment, Furniture and Materials",Materials & Consumables.,,15/03/2024,21/03/2024,138.89,,REDACTED DATA
Schools Total,School Group 7 � Pupil Capacity 501-1800,MCC Schools,Caldicot School,Supplies & Services,"Equipment, Furniture and Materials",Materials & Consumables.,,15/03/2024,21/03/2024,2.39,,REDACTED DATA
Schools Total,School Group 7 � Pupil Capacity 501-1800,MCC Schools,Caldicot School,Supplies & Services,"Equipment, Furniture and Materials",Materials & Consumables.,,15/03/2024,21/03/2024,2.13,,REDACTED DATA
Schools Total,School Group 7 � Pupil Capacity 501-1800,MCC Schools,Caldicot School,Supplies & Services,"Equipment, Furniture and Materials",Materials & Consumables.,,15/03/2024,21/03/2024,30.82,,REDACTED DATA
Schools Total,School Group 7 � Pupil Capacity 501-1800,MCC Schools,Caldicot School,Supplies & Services,"Equipment, Furniture and Materials",Materials & Consumables.,,15/03/2024,21/03/2024,250,,REDACTED DATA
Schools Total,School Group 7 � Pupil Capacity 501-1800,MCC Schools,Caldicot School,Supplies & Services,"Equipment, Furniture and Materials",Materials & Consumables.,,15/03/2024,21/03/2024,39.85,,REDACTED DATA
Schools Total,School Group 7 � Pupil Capacity 501-1800,MCC Schools,Caldicot School,Supplies & Services,"Equipment, Furniture and Materials",Materials & Consumables.,,15/03/2024,21/03/2024,20.82,,REDACTED DATA
Schools Total,School Group 7 � Pupil Capacity 501-1800,MCC Schools,Caldicot School,Supplies & Services,"Equipment, Furniture and Materials",Materials & Consumables.,,15/03/2024,21/03/2024,90.12,,REDACTED DATA
Neighbourhood Services,Highways,Communities & Place,Overhead - Mon Highways,Supplies & Services,Services,Training Charges,,12/03/2024,14/03/2024,80,,Heads Of The Valley Training Con
Democratic Services,Democratic Services,People & Governance,Members Costs,Supplies & Services,Services,Training Charges,,12/02/2024,14/03/2024,500,,Red Shiny Apple Ltd
Capital Division,Capital Dept,Capital,Capital Programme,Supplies & Services,"Equipment, Furniture and Materials",Materials & Consumables.,,11/03/2024,14/03/2024,167.52,,Morris's of Usk Garden Centre & Nurseries Ltd
"Commercial, Corporate & landlord Services",Property Services & Facilities Management,Resources,Programmed Maintenance,Premises,"Repairs, Alterations & Maintenance of Buildings",Premises Repairs And Maintenance,,31/01/2024,18/03/2024,180,,Enviroteq
Neighbourhood Services,Highways,Communities & Place,Overhead - Mon Highways,Supplies & Services,Services,Training Charges,,27/02/2024,22/03/2024,178.27,,Celsius Ltd
Neighbourhood Services,Highways,Communities & Place,Overhead - Mon Highways,Supplies & Services,Services,Training Charges,,27/02/2024,22/03/2024,267.4,,Celsius Ltd
Neighbourhood Services,Highways,Communities & Place,Overhead - Mon Highways,Supplies & Services,Services,Training Charges,,27/02/2024,22/03/2024,267.4,,Celsius Ltd
Neighbourhood Services,Waste and Street Services,Communities & Place,Refuse & Cleansing Operations,Supplies & Services,Services,Training Charges,,27/02/2024,22/03/2024,178.26,,Celsius Ltd
Neighbourhood Services,Highways,Communities & Place,Overhead - SWTRA / External,Supplies & Services,Services,Training Charges,,27/02/2024,22/03/2024,178.27,,Celsius Ltd
Neighbourhood Services,Highways,Communities & Place,Overhead - SWTRA / External,Supplies & Services,Services,Training Charges,,27/02/2024,22/03/2024,267.4,,Celsius Ltd
Neighbourhood Services,Highways,Communities & Place,Overhead - SWTRA / External,Supplies & Services,Services,Training Charges,,27/02/2024,22/03/2024,267.4,,Celsius Ltd
"Commercial, Corporate & landlord Services",Property Services & Facilities Management,Resources,Programmed Maintenance,Premises,"Repairs, Alterations & Maintenance of Buildings",Premises Repairs And Maintenance,,23/03/2024,28/03/2024,440.48,,Lorne Stewart  Plc
"Commercial, Corporate & landlord Services",Property Services & Facilities Management,Resources,Programmed Maintenance,Premises,"Repairs, Alterations & Maintenance of Buildings",Premises Repairs And Maintenance,,23/03/2024,28/03/2024,82.59,,Lorne Stewart  Plc
"Commercial, Corporate & landlord Services",Property Services & Facilities Management,Resources,Programmed Maintenance,Premises,"Repairs, Alterations & Maintenance of Buildings",Premises Repairs And Maintenance,,23/03/2024,28/03/2024,82.59,,Lorne Stewart  Plc
"Commercial, Corporate & landlord Services",Property Services & Facilities Management,Resources,Programmed Maintenance,Premises,"Repairs, Alterations & Maintenance of Buildings",Premises Repairs And Maintenance,,23/03/2024,28/03/2024,302.83,,Lorne Stewart  Plc
"Commercial, Corporate & landlord Services",Property Services & Facilities Management,Resources,Programmed Maintenance,Premises,"Repairs, Alterations & Maintenance of Buildings",Premises Repairs And Maintenance,,31/01/2024,14/03/2024,180,,Enviroteq
"Commercial, Corporate & landlord Services",Property Services & Facilities Management,Resources,Programmed Maintenance,Premises,"Repairs, Alterations & Maintenance of Buildings",Premises Repairs And Maintenance,,31/01/2024,14/03/2024,180,,Enviroteq
"Commercial, Corporate & landlord Services",Property Services & Facilities Management,Resources,Programmed Maintenance,Premises,"Repairs, Alterations & Maintenance of Buildings",Premises Repairs And Maintenance,,31/01/2024,14/03/2024,395,,Enviroteq
"Facilities, Fleet & Decarbonisation",Catering Services,Communities & Place,Schools Catering,Supplies & Services,Services,Training Charges,,29/02/2024,14/03/2024,695,,Coleg Gwent
"Commercial, Corporate & landlord Services",Property Services & Facilities Management,Resources,Programmed Maintenance,Premises,"Repairs, Alterations & Maintenance of Buildings",Premises Repairs And Maintenance,,31/01/2024,18/03/2024,395,,Enviroteq
"Commercial, Corporate & landlord Services",Property Services & Facilities Management,Resources,Usk Accommodation,Premises,"Repairs, Alterations & Maintenance of Buildings",Premises Repairs And Maintenance,,31/01/2024,18/03/2024,835,,Enviroteq
"Leisure, Youth & Outdoor Adventure",Leisure Services,MonLife Directorate,Abergavenny Leisure Centre,Supplies & Services,Services,Training Charges,,01/03/2024,20/03/2024,60.95,,RLSS UK Shop
Capital Division,Capital Dept,Capital,Capital Programme,Supplies & Services,"Equipment, Furniture and Materials",Materials & Consumables.,,28/02/2024,08/03/2024,6000,,Yogi Communications Ltd
Schools Total,School Group 2 � Pupil Capacity 144-314,MCC Schools,Shirenewton Primary School,Premises,"Repairs, Alterations & Maintenance of Buildings",Security Of Premises.,,01/09/2023,08/03/2024,150,,Shield Security
Schools Total,School Group 2 � Pupil Capacity 144-314,MCC Schools,Shirenewton Primary School,Premises,"Repairs, Alterations & Maintenance of Buildings",Security Of Premises.,,01/11/2023,08/03/2024,90,,Shield Security
"Commercial, Corporate & landlord Services",Property Services & Facilities Management,Resources,Programmed Maintenance,Premises,"Repairs, Alterations & Maintenance of Buildings",Premises Repairs And Maintenance,,23/03/2024,28/03/2024,588.06,,Lorne Stewart  Plc
"Commercial, Corporate & landlord Services",Property Services & Facilities Management,Resources,Programmed Maintenance,Premises,"Repairs, Alterations & Maintenance of Buildings",Premises Repairs And Maintenance,,23/03/2024,28/03/2024,588.06,,Lorne Stewart  Plc
"Commercial, Corporate & landlord Services",Property Services & Facilities Management,Resources,Programmed Maintenance,Premises,"Repairs, Alterations & Maintenance of Buildings",Premises Repairs And Maintenance,,23/03/2024,28/03/2024,588.06,,Lorne Stewart  Plc
"Commercial, Corporate & landlord Services",Property Services & Facilities Management,Resources,Programmed Maintenance,Premises,"Repairs, Alterations & Maintenance of Buildings",Premises Repairs And Maintenance,,23/03/2024,28/03/2024,588.06,,Lorne Stewart  Plc
"Commercial, Corporate & landlord Services",Property Services & Facilities Management,Resources,Programmed Maintenance,Premises,"Repairs, Alterations & Maintenance of Buildings",Premises Repairs And Maintenance,,23/03/2024,28/03/2024,588.06,,Lorne Stewart  Plc
"Commercial, Corporate & landlord Services",Property Services & Facilities Management,Resources,Programmed Maintenance,Premises,"Repairs, Alterations & Maintenance of Buildings",Premises Repairs And Maintenance,,23/03/2024,28/03/2024,588.06,,Lorne Stewart  Plc
"Commercial, Corporate & landlord Services",Property Services & Facilities Management,Resources,Programmed Maintenance,Premises,"Repairs, Alterations & Maintenance of Buildings",Premises Repairs And Maintenance,,23/03/2024,28/03/2024,588.06,,Lorne Stewart  Plc
"Commercial, Corporate & landlord Services",Property Services & Facilities Management,Resources,Programmed Maintenance,Premises,"Repairs, Alterations & Maintenance of Buildings",Premises Repairs And Maintenance,,23/03/2024,28/03/2024,588.06,,Lorne Stewart  Plc
Schools Total,School Group 2 � Pupil Capacity 144-314,MCC Schools,Ysgol Gymraeg Y Fenni,Supplies & Services,"Equipment, Furniture and Materials",Equipment Purchases,,29/02/2024,13/03/2024,16.64,,Amazon Payments UK Limited
Schools Total,School Group 2 � Pupil Capacity 144-314,MCC Schools,Ysgol Gymraeg Y Fenni,Supplies & Services,"Equipment, Furniture and Materials",Equipment Purchases,,29/02/2024,13/03/2024,14.7,,Amazon Payments UK Limited
Schools Total,School Group 2 � Pupil Capacity 144-314,MCC Schools,Ysgol Gymraeg Y Fenni,Supplies & Services,"Equipment, Furniture and Materials",Equipment Purchases,,29/02/2024,13/03/2024,-14.7,,Amazon Payments UK Limited
Schools Total,School Group 2 � Pupil Capacity 144-314,MCC Schools,Ysgol Gymraeg Y Fenni,Supplies & Services,"Equipment, Furniture and Materials",Equipment Purchases,,29/02/2024,13/03/2024,14.7,,Amazon Payments UK Limited
"Policy, Scrutiny & Customer Service",Community Hubs,Chief Executive's Unit,Prison Libraries,Supplies & Services,"Printing, Stationery and General Office Expenses",Book Purchases,,04/03/2024,13/03/2024,39.89,,Askews & Holts Library Services Ltd
"Facilities, Fleet & Decarbonisation",Transport Department,Communities & Place,Transport,Transport,Direct Transport Costs,All Other Non-Contract Transport Work.,,06/03/2024,13/03/2024,146.17,,Nilfisk Advance Ltd
Schools Total,School Group 7 � Pupil Capacity 501-1800,MCC Schools,Caldicot School,Premises,"Repairs, Alterations & Maintenance of Buildings",Building Improvements / Maintenance,,23/03/2024,28/03/2024,204.52,,Lorne Stewart  Plc
Capital Division,Capital Dept,Capital,Capital Programme,Supplies & Services,Services,Professional And Specialist Fees,,26/02/2024,06/03/2024,3380.37,,WSP UK Limited
Children Services,Children Services Teams,Social Care and Health,Children's Services Man/Support,Supplies & Services,"Equipment, Furniture and Materials",Removal Costs,,29/02/2024,06/03/2024,206.09,,The Maltings Document Storage SolutionsLtd
Schools Total,School Group 2 � Pupil Capacity 144-314,MCC Schools,Cantref Primary School,Supplies & Services,Communications and Computing,Software Annual,,01/03/2024,06/03/2024,1074.85,,Assessment Foundation CIC
Schools Total,School Group 2 � Pupil Capacity 144-314,MCC Schools,Gilwern Primary School,Premises,"Repairs, Alterations & Maintenance of Buildings",Building Improvements / Maintenance,,31/01/2024,14/03/2024,109.05,,Robert Price Builders Merchants Ltd
Resources,Support Services,Children & Young People,Support Services ICT,Supplies & Services,Communications and Computing,Software Annual,,11/03/2024,14/03/2024,171440.34,,Capita Business Services Ltd
Capital Division,Capital Dept,Capital,Capital Programme,Supplies & Services,Services,Professional And Specialist Fees,,17/11/2023,14/03/2024,180,,Mackley Davies Associates Limited
Schools Total,School Group 2 � Pupil Capacity 144-314,MCC Schools,Ysgol Gymraeg Y Fenni,Supplies & Services,Communications and Computing,IT Hardware,,20/03/2024,22/03/2024,80,,Microsmith Electronics Ltd
Adult Services,Community Care Team,Social Care and Health,Chepstow Adult Team,Third Party Payments,Third Party,Personal Care.,,26/03/2024,28/03/2024,637.04,,REDACTED PERSONAL DATA
Adult Services,Community Care Team,Social Care and Health,Chepstow Adult Team,Third Party Payments,Third Party,Personal Care.,,26/03/2024,28/03/2024,1004.24,,REDACTED PERSONAL DATA
Schools Total,School Group 2 � Pupil Capacity 144-314,MCC Schools,Cross Ash Primary School,Premises,"Repairs, Alterations & Maintenance of Buildings",Building Improvements / Maintenance,,23/03/2024,28/03/2024,409.38,,Lorne Stewart  Plc
Schools Total,School Group 2 � Pupil Capacity 144-314,MCC Schools,Durand Primary School,Premises,"Repairs, Alterations & Maintenance of Buildings",Building Improvements / Maintenance,,23/03/2024,28/03/2024,87.45,,Lorne Stewart  Plc
"Facilities, Fleet & Decarbonisation",Transport Planning,Communities & Place,Public Transport Subsidy Grant,Transport,Public Transport,Travel Concessions,,02/03/2024,14/03/2024,9100,,Stagecoach Services Ltd
Capital Division,Capital Dept,Capital,Capital Programme,Supplies & Services,Services,Professional And Specialist Fees,,06/02/2024,14/03/2024,3719,,WSP UK Limited
Capital Division,Capital Dept,Capital,Capital Programme,Supplies & Services,Services,Professional And Specialist Fees,,19/02/2024,14/03/2024,493.21,,WSP UK Limited
"Policy, Scrutiny & Customer Service",Community Hubs,Chief Executive's Unit,Strategic Management,Supplies & Services,Communications and Computing,Licences,,12/03/2024,18/03/2024,2290,,BDS
Schools Total,School Group 2 � Pupil Capacity 144-314,MCC Schools,Shirenewton Primary School,Premises,"Repairs, Alterations & Maintenance of Buildings",Building Improvements / Maintenance,,27/02/2024,20/03/2024,21692.25,,A.J Quinn Building Contractors Ltd
"Policy, Scrutiny & Customer Service",Community Hubs,Chief Executive's Unit,Strategic Management,Supplies & Services,"Printing, Stationery and General Office Expenses",Book Purchases,,04/03/2024,13/03/2024,4827.53,,Askews & Holts Library Services Ltd
"Policy, Scrutiny & Customer Service",Community Hubs,Chief Executive's Unit,Strategic Management,Supplies & Services,"Printing, Stationery and General Office Expenses",Book Purchases,,04/03/2024,13/03/2024,1869.33,,Askews & Holts Library Services Ltd
Children Services,Children Services Teams,Social Care and Health,Youth Offending Team,Employees,Direct Employee Expenses,Salaries,,26/10/2022,06/03/2024,2802.1,,Aneurin Bevan Local Health Board
Capital Division,Capital Dept,Capital,Capital Programme,Supplies & Services,Services,Professional And Specialist Fees,,04/01/2024,18/03/2024,4164.5,,Alliance Leisure Services Ltd
Capital Division,Capital Dept,Capital,Capital Programme,Supplies & Services,Services,Professional And Specialist Fees,,26/02/2024,19/03/2024,2050,,TERRA FIRMA (WALES) Ltd
Schools Total,School Group 7 � Pupil Capacity 501-1800,MCC Schools,King Henry 3-19 School,Supplies & Services,"Equipment, Furniture and Materials",Equipment Purchases,,22/02/2024,06/03/2024,223.83,,Hope Education Ltd
Schools Total,School Group 7 � Pupil Capacity 501-1800,MCC Schools,King Henry 3-19 School,Supplies & Services,"Equipment, Furniture and Materials",Equipment Purchases,,23/02/2024,06/03/2024,118.33,,Hope Education Ltd
Capital Division,Capital Dept,Capital,Capital Programme,Premises,"Repairs, Alterations & Maintenance of Buildings",Building Improvements / Maintenance,,29/02/2024,18/03/2024,3297.39,,Jaybee Soft Furnishings
Capital Division,Capital Dept,Capital,Capital Programme,Premises,"Repairs, Alterations & Maintenance of Buildings",Building Improvements / Maintenance,,29/02/2024,18/03/2024,3297.39,,Jaybee Soft Furnishings
Finance & Business Devlopment,Museums,MonLife Directorate,Museum Grants,Transport,Public Transport,Clients (Public Transport),,25/03/2024,28/03/2024,48.6,,REDACTED PERSONAL DATA
"Facilities, Fleet & Decarbonisation",Home to School Transport Dept,Communities & Place,Home To School Transport,Transport,Direct Transport Costs,Vechicles Repairs and Maintenance,,29/02/2024,06/03/2024,195,,Bulwark Bus & Coach Eng. Ltd
"Facilities, Fleet & Decarbonisation",Home to School Transport Dept,Communities & Place,Home To School Transport,Transport,Direct Transport Costs,Vechicles Repairs and Maintenance,,29/02/2024,06/03/2024,333.65,,Bulwark Bus & Coach Eng. Ltd
Adult Services,Direct Care Residential,Social Care and Health,Severn View Residential,Supplies & Services,"Equipment, Furniture and Materials",Materials & Consumables.,,16/03/2024,21/03/2024,-151.16,,Nisbets
Adult Services,Direct Care Residential,Social Care and Health,Severn View Residential,Supplies & Services,"Equipment, Furniture and Materials",Materials & Consumables.,,16/03/2024,21/03/2024,-37.78,,Nisbets
Adult Services,Direct Care,Social Care and Health,Monmouthshire Meals,Transport,Direct Transport Costs,Vechicles Repairs and Maintenance,,01/03/2024,14/03/2024,232.9,,Vantastec Ltd
"Facilities, Fleet & Decarbonisation",Home to School Transport Dept,Communities & Place,Home To School Transport,Transport,Direct Transport Costs,Vechicles Repairs and Maintenance,,29/02/2024,06/03/2024,221.6,,Mon & Border Motor Factors Ltd
Standards,Additional Learning Needs,Children & Young People,ALN Transport,Employees,Direct Employee Expenses,Travel Claims Allowance,,01/03/2024,06/03/2024,517.8,,REDACTED PERSONAL DATA
"Facilities, Fleet & Decarbonisation",Transport Department,Communities & Place,Transport,Transport,Direct Transport Costs,Spare Parts,,07/03/2024,13/03/2024,321.3,,Euro Commercials (South Wales) L
"Facilities, Fleet & Decarbonisation",Transport Department,Communities & Place,Transport,Transport,Direct Transport Costs,Vehicle Collision Damage Costs,,07/03/2024,13/03/2024,300.48,,Euro Commercials (South Wales) L
"Facilities, Fleet & Decarbonisation",Regional Transport,Communities & Place,Bus Services Support Grant,Supplies & Services,Grants and Subscriptions,Grants Payable,,21/03/2024,22/03/2024,128611.84,,Cardiff Bus
